Cogmind - Beta 9.3 @@@ ROGUE MODE // 2019.12.28 @ 02:00:47 // Winter2019/RPGLIKE Player: Decinym Result: Destroyed by Architect with Modified Quantum Sheargun Performance ------------- Evolutions (9) 4500 Regions Visited (38) 7600 Robots Destroyed (360) 1800 Value Destroyed (13243) 13243 Prototype IDs (85) 1700 Alien Tech Used (14) 2800 Bonus (26852) 26852 TOTAL SCORE: 58495 Bonus ------- Triggered High Security 500 High Alert Combat Kills 957 Follower Combat Kills 2469 Network Hubs Disabled 800 Met Data Miner 300 Met Imprinter 300 Met Zhirov 300 Built Enhanced Grunts 300 A7 Reached Mainframe 300 Hacked Protovariant 500 Met MAIN.C 5000 Destroyed MAIN.C Shell 5000 Destroyed MAIN.C 10000 Met Architect 300 Destroyed A8 300 Destroyed A6 400 Friendly Fire -874 Cogmind --------- Core Integrity 0/1900 Matter 230/300 Energy 546/840 System Corruption 0% Temperature Cool (10) Movement Flying (39) Location -1/Access_0 Parts ------- > --- POWER (3) -------- Light Antimatter Reactor Particle Reactor Light Particle Reactor > --- PROPULSION (5) --- Flying Fortress v7 Cooled Impulse Thruster > --- UTILITY (11) ----- Experimental Signal Interpreter Experimental Terrain Scanner Advanced Melee Analysis Suite Advanced Melee Analysis Suite Advanced Melee Analysis Suite Experimental Core Analyzer Femtoactuators Advanced Reaction Control System Beam Splitter Advanced Force Field System Mapper > --- WEAPON (5) ------- Nanosword Nanosword Nanosword Sigix Broadsword > --- INVENTORY (9) ---- Protomatter-27 Experimental Actuator Array Supercharged Sigix Terminator Peak State ------------ > --- POWER ------------ Light Antimatter Reactor Particle Reactor Light Particle Reactor > --- PROPULSION ------- Flying Fortress v7 Cooled Impulse Thruster > --- UTILITY ---------- Experimental Signal Interpreter Experimental Terrain Scanner Advanced Melee Analysis Suite Advanced Melee Analysis Suite Experimental Core Analyzer Femtoactuators Experimental Actuator Array Advanced Reaction Control System Advanced Force Field System Mapper Experimental System Shield > --- WEAPON ----------- Nanosword Nanosword Nanosword Sigix Broadsword > --- INVENTORY -------- Protomatter Protomatter Protomatter Protomatter Advanced Melee Analysis Suite Experimental Target Analyzer Transdimensional Reconstructor Supercharged Sigix Terminator [Rating: 211] Favorites ----------- Power Light Antimatter Reactor Engine Improved Deuterium Engine Power Core Fission Core Reactor Light Antimatter Reactor Propulsion Flying Fortress v7 Leg Aluminum Leg Flight Unit Flying Fortress v7 Utility Experimental Core Analyzer Device Experimental Terrain Scanner Storage Advanced Energy Well Processor Experimental Core Analyzer Hackware Advanced Hacking Suite Protection Improved Core Shielding Weapon Nanosword Energy Gun Advanced Variable Charge Gun Energy Cannon Cooled Particle Cannon Ballistic Gun Light Assault Rifle Launcher Precision Rocket Launcher Slashing Weapon Nanosword Piercing Weapon Enhanced Force Lance Build | -11 -10 -10 -9 -9 -9 -8 -8 -8 -7 -7 -7 -7 -6 -6 -6 -6 -6 -5 -5 -5 -5 -5 -5 -5 -4 -4 -4 -4 -4 -4 -3 -3 -2 -2 -2 -1 -1 -1 ------- Run | Scr Mat Min Mat Min Exi Min Mat Sto Fac Low Low Zio Pro Fac Low Low Dat Pro Fac Was Fac Upp Upp Zhi Pro Fac Ext Cet Arc Hub Res Tes Res Qua Sec Acc Com Ac0 Slots Evolved 20 | 3 . 1 . 2 1 . 1 3 . . . 1 . 1 . 1 . . . . . . . . . 1 . . . 1 1 . . . 1 1 1 . Power 2 | . . . . 1 . . . . . . . . . . . . . . . . . . . . . . . . . . . . . . 1 . . . Propulsion 4 | 1 . 1 . . 1 . . 1 . . . . . . . . . . . . . . . . . . . . . . . . . . . . . . Utility 10 | 1 . . . 1 . . 1 1 . . . 1 . 1 . 1 . . . . . . . . . 1 . . . 1 . . . . . . 1 . Weapon 4 | 1 . . . . . . . 1 . . . . . . . . . . . . . . . . . . . . . . 1 . . . . 1 . . Parts Attached 164 | 5 3 9 12 5 2 . 15 11 9 3 1 8 . 2 1 2 . 1 . 2 5 . 2 9 . 10 2 2 . 2 5 2 3 6 9 3 12 1 Power 21 | . . 1 3 1 . . 3 2 2 . 1 . . . . . . 1 . . 1 . . . . 3 . . . . . . 1 . 1 . . 1 Engine 9 | . . 1 2 1 . . 3 2 . . . . . . . . . . . . . . . . . . . . . . . . . . . . . . Core 3 | . . . 1 . . . . . 2 . . . . . . . . . . . . . . . . . . . . . . . . . . . . . Reactor 9 | . . . . . . . . . . . 1 . . . . . . 1 . . 1 . . . . 3 . . . . . . 1 . 1 . . 1 Propulsion 15 | 1 . 4 . 2 1 . . 1 . . . . . . . . . . . . 1 . . 1 . . 1 . . . . . . . 1 . 2 . Treads . | . . . . . . . . . . . . . . . . . . . . . . . . . . . . . . . . . . . . . . . Leg 7 | 1 . 4 . 2 . . . . . . . . . . . . . . . . . . . . . . . . . . . . . . . . . . Wheel . | . . . . . . . . . . . . . . . . . . . . . . . . . . . . . . . . . . . . . . . Hover . | . . . . . . . . . . . . . . . . . . . . . . . . . . . . . . . . . . . . . . . Flight 8 | . . . . . 1 . . 1 . . . . . . . . . . . . 1 . . 1 . . 1 . . . . . . . 1 . 2 . Utility 66 | 2 1 1 . 1 . . 3 3 1 1 . 8 . 2 . 2 . . . 1 1 . 1 5 . 5 . . . 2 4 2 . 3 7 2 8 . Device 36 | 1 . 1 . 1 . . 1 1 . 1 . 3 . 1 . 1 . . . . 1 . 1 3 . 4 . . . 1 1 1 . 1 5 1 6 . Storage 4 | . . . . . . . . . . . . . . . . . . . . . . . . 1 . 1 . . . . . . . 1 1 . . . Processor 13 | 1 1 . . . . . 2 1 . . . 5 . . . . . . . . . . . . . . . . . . . . . . . 1 2 . Hackware 9 | . . . . . . . . . 1 . . . . 1 . 1 . . . 1 . . . . . . . . . . 3 1 . . 1 . . . Protection 4 | . . . . . . . . 1 . . . . . . . . . . . . . . . 1 . . . . . 1 . . . 1 . . . . Artifact . | . . . . . . . . . . . . . . . . . . . . . . . . . . . . . . . . . . . . . . . Weapon 62 | 2 2 3 9 1 1 . 9 5 6 2 . . . . 1 . . . . 1 2 . 1 3 . 2 1 2 . . 1 . 2 3 . 1 2 . Energy Gun 16 | 2 1 3 4 . 1 . 1 . 1 . . . . . . . . . . . . . . . . . 1 2 . . . . . . . . . . Energy Cannon 19 | . . . 1 . . . 5 2 3 . . . . . 1 . . . . . 2 . 1 2 . 1 . . . . . . 1 . . . . . Ballistic Gun . | . . . . . . . . . . . . . . . . . . . . . . . . . . . . . . . . . . . . . . . Ballistic Cannon . | . . . . . . . . . . . . . . . . . . . . . . . . . . . . . . . . . . . . . . . Launcher 17 | . 1 . 3 1 . . 3 3 1 1 . . . . . . . . . 1 . . . 1 . 1 . . . . . . . . . . 1 . Special Weapon . | . . . . . . . . . . . . . . . . . . . . . . . . . . . . . . . . . . . . . . . Impact Weapon . | . . . . . . . . . . . . . . . . . . . . . . . . . . . . . . . . . . . . . . . Slashing Weapon 7 | . . . 1 . . . . . . . . . . . . . . . . . . . . . . . . . . . . . 1 3 . 1 1 . Piercing Weapon 3 | . . . . . . . . . 1 1 . . . . . . . . . . . . . . . . . . . . 1 . . . . . . . Special Melee Weapon . | . . . . . . . . . . . . . . . . . . . . . . . . . . . . . . . . . . . . . . . Unidentified Prototypes 40 | . . . 2 . . . 1 4 2 . . 6 . . . . . . . . 1 . . 5 . 2 . 1 . . . 1 . 1 10 . 4 . Parts Lost . | . . . . . . . . . . . . . . . . . . . . . . . . . . . . . . . . . . . . . . . Power . | . . . . . . . . . . . . . . . . . . . . . . . . . . . . . . . . . . . . . . . Propulsion . | . . . . . . . . . . . . . . . . . . . . . . . . . . . . . . . . . . . . . . . Utility . | . . . . . . . . . . . . . . . . . . . . . . . . . . . . . . . . . . . . . . . Weapon . | . . . . . . . . . . . . . . . . . . . . . . . . . . . . . . . . . . . . . . . Highest Loss Streak . | . . . . . . . . . . . . . . . . . . . . . . . . . . . . . . . . . . . . . . . Average Slot Usage (%) 84 | . 100 99 99 90 85 72 74 76 79 80 80 80 81 81 82 82 83 83 83 79 82 83 83 65 83 81 78 84 84 81 81 85 85 83 77 79 81 83 Engine 5 | . 14 12 10 15 18 18 16 14 2 . . . . . . . . . . . . . . . . . . . . . . . . . . . . . Core 1 | . . . 1 . . . . . 10 13 10 6 6 5 5 5 5 1 . . . . . . . . . . . . . . . . . . . . Reactor 5 | . . . . . . . . . . . 2 6 6 5 5 5 5 9 11 11 11 11 11 11 11 10 10 10 10 10 9 9 9 9 12 13 12 12 Leg 7 | . 28 34 37 30 15 . . . . . . . . . . . . . . . . . . . . . . . . . . . . . . . . . Flight 7 | . . . . . 4 9 8 11 13 13 13 12 12 11 11 11 11 11 11 11 11 11 11 11 11 10 9 10 10 10 9 9 9 9 9 8 8 8 Device 13 | . 14 12 12 15 18 18 15 15 13 13 13 12 12 11 11 13 11 11 11 6 5 5 5 8 11 10 10 10 10 10 14 14 14 17 13 13 18 20 Storage 1 | . . . . . . . . . . . . . . . . . . . . . . . . . . 5 5 5 5 5 4 4 4 3 . . . . Processor 15 | . 14 12 12 10 9 9 15 14 13 13 13 18 25 24 23 22 22 22 22 22 22 22 21 16 16 15 15 15 15 15 14 14 14 9 9 11 15 20 Hackware 7 | . . . . . . . . . 6 6 6 3 . 2 5 6 11 11 11 12 16 16 16 16 16 15 15 15 15 13 11 14 14 14 15 17 8 4 Energy Gun 6 | . 26 25 20 10 9 18 1 . . . . . . . . . . . . . . . . . . . . 8 10 10 9 9 9 3 . . . . Energy Cannon 6 | . . . 2 8 . . 12 13 13 13 13 12 12 11 11 11 11 11 11 11 10 11 11 . 11 9 10 6 5 5 4 4 4 . . . . . Launcher 2 | . 1 . 1 1 9 . 1 3 5 6 6 6 6 5 5 5 5 5 5 5 5 5 5 . 5 3 . . . . . . . . . . . . Slashing Weapon 2 | . . . . . . . . . . . . . . . . . . . . . . . . . . . . . . . . . 1 12 13 13 16 16 Naked Turns . | . . . . . . . . . . . . . . . . . . . . . . . . . . . . . . . . . . . . . . . Heaviest Build 96 | 8 9 12 16 22 22 21 36 48 44 44 46 46 46 47 50 52 51 57 57 57 55 53 57 58 58 61 53 53 50 96 96 74 77 81 79 80 84 81 Greatest Support 108 | 20 20 30 30 30 72 72 72 78 78 78 78 78 78 78 78 78 78 78 78 78 81 81 81 81 81 81 81 81 81 96 96 96 96 96 108 108 108 108 Greatest Overweight (x) 1 | . . . . . 1 . . . . . . . . . . . . . . . . . . . . . . . . . . . . . . . . . Average Overweight (x) . | . . . . . . . . . . . . . . . . . . . . . . . . . . . . . . . . . . . . . . . Largest Inventory Capacity 9 | 2 2 3 3 3 3 3 3 3 4 4 4 5 5 5 5 5 5 6 6 6 7 7 7 7 7 7 7 7 7 7 7 7 8 9 9 9 9 9 Average Capacity 5 | 1 2 2 3 3 3 3 3 3 3 4 4 4 5 5 5 5 5 5 6 6 6 7 7 7 7 7 7 7 7 7 7 7 7 8 9 9 9 9 Most Carried 9 | 2 2 3 3 3 3 3 3 3 4 4 4 5 5 5 5 5 5 6 6 6 7 7 7 7 7 7 7 7 7 7 7 7 8 9 9 9 9 4 Average Carried 4 | 1 1 2 2 3 3 3 2 2 3 4 4 4 5 4 5 4 5 5 6 5 6 7 6 6 7 6 6 6 7 6 5 7 6 7 7 8 7 4 Final Capacity 9 | 2 2 3 3 3 3 3 3 3 4 4 4 5 5 5 5 5 5 6 6 6 7 7 7 7 7 7 7 7 7 7 7 7 8 9 9 9 9 9 Final Carried 9 | 2 2 3 3 3 3 3 3 3 4 4 4 5 5 5 5 5 5 6 6 6 7 7 7 7 7 7 6 7 7 4 7 7 8 9 7 9 4 4 Class Distribution -------------------- 46% | Wizard-Scout 25% | Hacker-Mutant 14% | Hacker-Scout 9% | Mutant 3% | Scavenger-Mutant Dominant Class ---------------- Mutant | -10/Materials Scavenger-Mutant | -10/Mines Hacker-Mutant | -9/Materials Hacker-Mutant | -9/Mines Hacker-Mutant | -9/Exiles Hacker-Mutant | -8/Mines Hacker-Mutant | -8/Materials Hacker-Mutant | -8/Storage Hacker-Mutant | -7/Factory Hacker-Scout | -7/Lower Caves Hacker-Scout | -7/Lower Caves Hacker-Scout | -7/Zion Hacker-Scout | -6/Proximity Caves Hacker-Scout | -6/Factory Hacker-Scout | -6/Lower Caves Hacker-Scout | -6/Lower Caves Wizard-Scout | -6/Data Miner Wizard-Scout | -5/Proximity Caves Wizard-Scout | -5/Factory Wizard-Scout | -5/Waste Wizard-Scout | -5/Factory Wizard-Scout | -5/Upper Caves Wizard-Scout | -5/Upper Caves Wizard-Scout | -5/Zhirov Wizard-Scout | -4/Proximity Caves Wizard-Scout | -4/Factory Wizard-Scout | -4/Extension Wizard-Scout | -4/Cetus Wizard-Scout | -4/Archives Wizard-Scout | -4/Hub_04(d) Wizard-Scout | -3/Research Wizard-Scout | -3/Testing Wizard-Scout | -2/Research Wizard-Scout | -2/Quarantine Wizard-Scout | -2/Section 7 Wizard-Scout | -1/Access Wizard-Scout | -1/Command Wizard-Scout | -1/Access_0 Resources | -11 -10 -10 -9 -9 -9 -8 -8 -8 -7 -7 -7 -7 -6 -6 -6 -6 -6 -5 -5 -5 -5 -5 -5 -5 -4 -4 -4 -4 -4 -4 -3 -3 -2 -2 -2 -1 -1 -1 ----------- Run | Scr Mat Min Mat Min Exi Min Mat Sto Fac Low Low Zio Pro Fac Low Low Dat Pro Fac Was Fac Upp Upp Zhi Pro Fac Ext Cet Arc Hub Res Tes Res Qua Sec Acc Com Ac0 Matter Collected 3284 | 250 10 140 260 89 . . 337 340 125 50 71 39 10 155 25 95 . 85 15 40 54 57 52 . 167 157 42 43 . 33 30 40 30 14 319 30 80 . Remotely . | . . . . . . . . . . . . . . . . . . . . . . . . . . . . . . . . . . . . . . . Salvage Created 14551 | 97 788 165 932 143 . . 1028 576 788 . 143 . 21 558 187 331 . 378 170 268 170 128 . . 189 2387 913 243 . 1243 247 56 215 105 480 425 931 246 Parts 731 | 3 41 21 55 10 . . 55 57 33 . 12 . 1 32 10 13 . 9 8 20 6 2 3 . 14 68 25 15 . 30 19 . 21 3 33 34 67 11 Haulers Intercepted 22 | . 2 . 3 . . . 4 2 2 . . . . . . 1 . . . . 1 . . . . 4 . . . 1 . . . . 1 1 . . Recyclers Shooed 12 | . . . 4 . . . . . 1 . . . . . . . . . . . . . . . . 7 . . . . . . . . . . . . Parts Field Recycled . | . . . . . . . . . . . . . . . . . . . . . . . . . . . . . . . . . . . . . . . Retrieved Matter . | . . . . . . . . . . . . . . . . . . . . . . . . . . . . . . . . . . . . . . . Parts Self-Destructed 45 | . . . . . . . . . . . 5 . . . 9 11 . 6 . . . 1 2 . 11 . . . . . . . . . . . . . Prevented 3 | . . . . . . . . . . 1 . . . . . . . . . . . 1 1 . . . . . . . . . . . . . . . Kills | -11 -10 -10 -9 -9 -9 -8 -8 -8 -7 -7 -7 -7 -6 -6 -6 -6 -6 -5 -5 -5 -5 -5 -5 -5 -4 -4 -4 -4 -4 -4 -3 -3 -2 -2 -2 -1 -1 -1 ------- Run | Scr Mat Min Mat Min Exi Min Mat Sto Fac Low Low Zio Pro Fac Low Low Dat Pro Fac Was Fac Upp Upp Zhi Pro Fac Ext Cet Arc Hub Res Tes Res Qua Sec Acc Com Ac0 Combat Hostiles Destroyed 247 | . 12 10 22 6 . . 13 24 15 . 7 . 3 12 5 9 . 8 5 4 1 4 1 . 10 11 11 5 . 6 3 . 4 1 9 9 15 2 Melee 36 | . . . 1 . . . . . . . . . . . . . . . . . . . . . . . . . . . . . . . 9 9 15 2 Guns 34 | . 8 9 8 2 . . . . . . . . . . . . . . . . . . . . . . . . . 2 3 . 2 . . . . . Cannons 74 | . . . . 2 . . 6 6 8 . 1 . . 7 2 6 . 4 3 4 1 . 1 . 1 5 9 5 . 1 . . 2 . . . . . AOE 93 | . 4 . 13 2 . . 7 18 7 . 6 . 3 4 3 3 . 4 1 . . 3 . . 9 4 . . . 1 . . . 1 . . . . Classes Destroyed 20 | 2 7 . 1 . . . 1 1 1 . 1 . . 1 . 1 . 1 . 1 . . . . . . . . . . . 1 . . . . 1 . Worker 15 | . 1 . 3 . . . 3 1 . . . . . . . . . . . . . . . . . 1 . . . 4 . . . . . 2 . . Builder 9 | . 2 1 2 . . . . . . . . . . . . . . . . . . . . . . 1 . . . 2 . . . . . 1 . . Tunneler 2 | 1 . . . . . . . 1 . . . . . . . . . . . . . . . . . . . . . . . . . . . . . . Hauler 22 | . 2 . 3 . . . 4 2 2 . . . . . . 1 . . . . 1 . . . . 4 . . . 1 . . . . 1 1 . . Recycler 23 | 1 3 . 3 . . . 1 . 1 . . . . . . . . . . . . . . . . 10 1 . . 2 . . . . . . 1 . Carrier 1 | . . . . . . . . . . . . . . . . . . . . . . . . . . . . . . . . . . . . . 1 . Mechanic 1 | . . . . . . . . . . . . . . . . . . 1 . . . . . . . . . . . . . . . . . . . . Operator 9 | . 1 . . . . . 2 1 . . . . . . . . . . . . 1 . . . . 1 . . . 1 2 . . . . . . . Watcher 27 | . 3 . 2 . . . 4 2 2 . . . . 3 . . . . . . 1 . . . . 2 1 . . 2 . . 1 1 . 1 2 . Swarmer 75 | . 3 3 6 3 . . 4 7 4 . . . 3 4 3 . . 2 . . . . . . 9 4 . 3 . 2 . . . . 4 2 9 . Grunt 83 | . 9 7 12 3 . . 4 9 5 . 2 . . 3 1 7 . 4 5 . . 4 1 . 1 . 3 . . 1 . . . . 1 . 1 . Brawler 2 | . . . . . . . . . 1 . . . . . . . . 1 . . . . . . . . . . . . . . . . . . . . Duelist 6 | . . . . . . . . 2 1 . 1 . . . . 1 . 1 . . . . . . . . . . . . . . . . . . . . Researcher 1 | . . . . . . . . . . . . . . . . . . . . . . . . . . . . . . . . 1 . . . . . . Sentry 42 | . . . 4 . . . 3 5 3 . . . . 4 1 . . . . . . . . . . 4 8 . . 3 1 . 1 . 2 3 . . Hunter 7 | . . . . . . . 2 1 1 . . . . . . . . . . . 1 . . . . 1 . . . . . . . 1 . . . . Programmer 18 | . . . . . . . . . . . . . . 1 . 1 . . . . . . . . . 2 . . . . 2 . 3 . 2 4 3 . Compactor 4 | . . . . . . . . . . . . . . . . . . . . 4 . . . . . . . . . . . . . . . . . . Cetus Guard 2 | . . . . . . . . . . . . . . . . . . . . . . . . . . . . 2 . . . . . . . . . . Enhanced Grunt 1 | . . . . . . . . . . . . . . . . . . . . . . . . . . . . . . 1 . . . . . . . . Tinkerer 1 | . . . . . . . . . . . . . . . . 1 . . . . . . . . . . . . . . . . . . . . . . Thug 2 | . . . . . . . . . . . 1 . . . . . . . . . . . . . . . . 1 . . . . . . . . . . Fireman 3 | . . . . . . . . . . . 3 . . . . . . . . . . . . . . . . . . . . . . . . . . . Best Kill Streak 29 | 2 7 3 29 3 . . 4 7 5 . 7 . 3 5 4 6 . 5 4 2 2 4 1 . 6 15 4 3 . 12 13 1 3 1 4 3 6 1 Combat Bots Only 11 | . 3 3 11 3 . . 4 6 4 . 7 . 3 5 4 5 . 4 4 2 1 4 1 . 6 4 2 3 . 3 2 . 3 1 4 3 6 1 Max Kills in Single Turn 7 | 1 2 1 3 2 . . 2 4 2 . 3 . 2 3 3 2 . 2 1 1 1 3 1 . 5 2 1 1 . 7 1 1 1 1 1 1 1 1 Gunslinging . | . . . . . . . . . . . . . . . . . . . . . . . . . . . . . . . . . . . . . . . Exploded 5 | . 2 . 2 2 . . 2 3 2 . 3 . 2 3 3 2 . 1 1 . . 3 . . 5 2 . . . 1 . . . 1 . . . . Melee 1 | . . . 1 . . . . . . . . . . . . . . . . . . . . . . . . . . . . . . . 1 1 1 1 Uniques/NPCs Destroyed 3 | . . . . . . . . . . . . . . . . . . . . . . . . . . . . . . . . . . . . . 1 2 MAIN.C Shell (-1/Command) MAIN.C (-1/Command) A8 (-1/Access_0) A6 (-1/Access_0) Combat | -11 -10 -10 -9 -9 -9 -8 -8 -8 -7 -7 -7 -7 -6 -6 -6 -6 -6 -5 -5 -5 -5 -5 -5 -5 -4 -4 -4 -4 -4 -4 -3 -3 -2 -2 -2 -1 -1 -1 -------- Run | Scr Mat Min Mat Min Exi Min Mat Sto Fac Low Low Zio Pro Fac Low Low Dat Pro Fac Was Fac Upp Upp Zhi Pro Fac Ext Cet Arc Hub Res Tes Res Qua Sec Acc Com Ac0 Damage Taken 14041 | 20 388 392 985 114 . . 522 244 497 . . . 295 346 66 86 . 144 362 43 53 68 52 . 63 645 1748 370 92 641 203 148 333 227 593 814 1107 2380 Core 11205 | 18 317 313 798 92 . . 426 192 393 . . . 240 273 51 78 . 117 298 39 42 56 40 . 49 539 1423 287 71 508 159 117 264 170 455 631 847 1902 Absorbed by Shields 5391 | . . . . . . . . . . . . . . . . . . . . . . . . . . . 174 86 14 . 214 158 343 239 622 854 1142 1545 Redirected to Core 9581 | 8 245 271 661 66 . . 323 175 333 . . . 192 254 51 24 . 92 222 10 42 41 40 . 49 379 1145 287 71 445 136 96 225 170 404 590 836 1698 Core Remaining (%) 83 | 97 . 100 . . . 72 . 93 . . . . 73 . . . . 97 . . . . . . 100 . . . . 68 . 62 . . 68 . . . Volleys Fired 655 | 6 51 34 53 13 . . 49 36 47 . 7 . 3 30 7 18 . 18 11 45 9 4 1 . 6 70 55 11 7 25 29 1 9 . . . . . Largest 3 | 2 2 2 2 2 . . 2 2 2 . 2 . 1 2 2 2 . 2 2 2 2 2 2 . 2 2 2 3 3 3 3 3 3 . . . . . Hottest 280 | 80 80 130 130 124 . . 130 130 130 . 60 . 43 60 128 133 . 128 128 128 150 150 150 . 188 188 188 263 258 258 258 258 280 . . . . . Shots Fired 1247 | 12 95 68 90 18 . . 82 55 91 . 8 . 3 58 13 32 . 31 21 90 18 6 3 . 10 129 109 18 13 75 69 3 27 . . . . . Gun 363 | 12 92 68 63 11 . . . . . . . . . . . . . . . . . . . . . . . 2 6 49 40 2 18 . . . . . Cannon 800 | . . . 11 5 . . 70 39 88 . 2 . . 56 12 27 . 26 20 89 18 4 3 . 7 126 109 16 7 26 29 1 9 . . . . . Launcher 84 | . 3 . 16 2 . . 12 16 3 . 6 . 3 2 1 5 . 5 1 1 . 2 . . 3 3 . . . . . . . . . . . . Special . | . . . . . . . . . . . . . . . . . . . . . . . . . . . . . . . . . . . . . . . Kinetic . | . . . . . . . . . . . . . . . . . . . . . . . . . . . . . . . . . . . . . . . Thermal 1008 | . . 32 74 16 . . 70 39 88 . 2 . . 56 12 27 . 26 20 89 10 . . . 7 126 109 18 13 75 69 3 27 . . . . . Explosive 84 | . 3 . 16 2 . . 12 16 3 . 6 . 3 2 1 5 . 5 1 1 . 2 . . 3 3 . . . . . . . . . . . . Electromagnetic 155 | 12 92 36 . . . . . . . . . . . . . . . . . . 8 4 3 . . . . . . . . . . . . . . . Robot Hit Streak 40 | 8 5 23 13 5 . . 14 13 14 . 12 . 1 16 10 35 . 40 26 31 24 20 2 . 5 30 33 14 16 16 8 4 12 . . . . . Robot Miss Streak 8 | 1 8 2 3 1 . . 4 2 2 . . . 1 2 . . . 1 1 1 1 . 1 . 1 2 2 1 1 2 1 . 2 . . . . . Penetration Max . | . . . . . . . . . . . . . . . . . . . . . . . . . . . . . . . . . . . . . . . Secondary Targets 2 | . 1 . 1 . . . . . . . . . . . . . . . . . . . . . . . . . . . . . . . . . . . Max Gunslinging Chain 1 | . 1 . 1 . . . . . . . . . . . . . . . . . . . . . . . . . . . . . . . . . . . Shots Hit Robots 1045 | 11 52 52 60 12 . . 52 33 68 . 8 . 1 41 7 25 . 20 16 81 15 6 2 . 7 101 93 17 11 45 20 2 19 3 20 32 85 28 Core Hits 654 | 2 36 19 55 7 . . 41 45 30 . 14 . 3 25 7 23 . 24 10 20 4 12 1 . 12 63 44 11 5 43 9 3 10 3 11 14 34 14 Critical Hits 36 | . . . 1 . . . . . 1 . . . . . . . . . . 2 . . . . . 4 3 . . 1 . . . . 4 4 13 3 Critical Kills 7 | . . . . . . . . . 1 . . . . . . . . . . . . . . . . . . . . 1 . . . . 1 3 1 . Critical Parts Destroyed 15 | . . . 1 . . . . . . . . . . . . . . . . 1 . . . . . 2 2 . . . . . . . 3 . 4 2 Melee Attacks 377 | . . . 3 . . . . . 1 . . . . . . . . . . . . . . . . . . . . . 5 8 25 22 56 74 135 48 Impact . | . . . . . . . . . . . . . . . . . . . . . . . . . . . . . . . . . . . . . . . Slashing 350 | . . . 3 . . . . . . . . . . . . . . . . . . . . . . . . . . . . . 12 22 56 74 135 48 Piercing 27 | . . . . . . . . . 1 . . . . . . . . . . . . . . . . . . . . . 5 8 13 . . . . . Sneak Attacks 11 | . . . . . . . . . . . . . . . . . . . . . . . . . . . . . . . . . . . 2 4 5 . Combat Hostiles 1 | . . . . . . . . . . . . . . . . . . . . . . . . . . . . . . . . . . . . . 1 . Follow-up Attacks 73 | . . . . . . . . . . . . . . . . . . . . . . . . . . . . . . . . . . 1 6 9 45 12 Damage Inflicted 53566 | 192 1284 826 2462 352 . . 2385 3057 2438 . 972 . 392 1845 401 1780 . 1553 708 2979 564 734 41 . 1022 4569 3418 607 409 3002 789 50 786 536 1870 3225 6824 1494 Guns 4922 | 136 826 734 782 120 . . . . . . . . . . . . . . . . . . . . . . . 24 220 1044 491 50 495 . . . . . Cannons 19855 | . . . 163 61 . . 1405 735 1701 . 54 . . 1207 175 718 . 474 498 2681 564 139 41 . 174 3799 3418 583 189 559 298 . 219 . . . . . Explosions 15026 | 56 458 92 1479 171 . . 980 2322 737 . 918 . 392 638 226 1062 . 1079 210 298 . 595 . . 848 770 . . . 1399 . . . 296 . . . . Melee 13763 | . . . 38 . . . . . . . . . . . . . . . . . . . . . . . . . . . . . 72 240 1870 3225 6824 1494 Ramming . | . . . . . . . . . . . . . . . . . . . . . . . . . . . . . . . . . . . . . . . Kinetic . | . . . . . . . . . . . . . . . . . . . . . . . . . . . . . . . . . . . . . . . Thermal 23690 | 56 379 452 945 181 . . 1405 735 1701 . 54 . . 1425 175 718 . 474 498 2681 248 . . . 174 3799 3418 607 409 1603 789 50 714 . . . . . Explosive 12882 | . 79 . 1479 171 . . 980 2322 737 . 918 . 392 420 226 1062 . 1079 210 298 . 595 . . 848 770 . . . . . . . 296 . . . . Electromagnetic 3231 | 136 826 374 . . . . . . . . . . . . . . . . . . 316 139 41 . . . . . . 1399 . . . . . . . . Impact . | . . . . . . . . . . . . . . . . . . . . . . . . . . . . . . . . . . . . . . . Slashing 13763 | . . . 38 . . . . . . . . . . . . . . . . . . . . . . . . . . . . . 72 240 1870 3225 6824 1494 Piercing . | . . . . . . . . . . . . . . . . . . . . . . . . . . . . . . . . . . . . . . . Highest Corruption 24 | . . . 5 5 5 5 . . 1 1 1 1 . . . . . . . 24 24 24 24 24 24 8 9 9 9 11 2 2 3 5 8 . . . Average Corruption 7 | . . . 5 5 5 5 . . 1 1 1 1 . . . . . . . 13 24 24 24 24 24 6 8 9 9 9 1 2 2 3 7 . . . Corruption Purged . | . . . . . . . . . . . . . . . . . . . . . . . . . . . . . . . . . . . . . . . Effects 288 | . . . . 22 10 3 . . 2 . 1 . . . . . . . . 22 33 21 14 13 16 21 39 11 3 20 6 1 3 11 16 . . . Message Errors 47 | . . . . 3 4 1 . . 2 . 1 . . . . . . . . 3 5 1 1 1 2 5 6 2 1 2 2 . 1 2 2 . . . Matter Fused 36 | . . . . 3 2 . . . . . . . . . . . . . . 1 4 1 3 3 . 2 4 2 . 2 . . . 5 4 . . . Heat Flow Errors 27 | . . . . 5 1 2 . . . . . . . . . . . . . 2 3 2 . . 2 3 3 . . 1 . . . 3 . . . . Energy Discharges 22 | . . . . 5 . . . . . . . . . . . . . . . 1 . 2 . . 1 2 4 . . 1 1 . 2 1 2 . . . Parts Rejected 3 | . . . . . . . . . . . . . . . . . . . . . 1 . . . . 1 1 . . . . . . . . . . . Data Loss (minor) 25 | . . . . 4 2 . . . . . . . . . . . . . . . 3 1 2 . . . 3 2 . 2 1 1 . . 4 . . . Data Loss (major) 9 | . . . . . 1 . . . . . . . . . . . . . . 1 1 . 1 1 . . 2 1 . . . . . . 1 . . . Misfires 9 | . . . . 1 . . . . . . . . . . . . . . . 2 . . 1 . 1 1 1 . . 2 . . . . . . . . Misdirections 44 | . . . . . . . . . . . . . . . . . . . . 1 11 13 5 8 5 . . . . 1 . . . . . . . . Targeting Errors 57 | . . . . . . . . . . . . . . . . . . . . 9 5 1 1 . 5 6 13 2 2 8 2 . . . 3 . . . Weapon Failures 9 | . . . . 1 . . . . . . . . . . . . . . . 2 . . . . . 1 2 2 . 1 . . . . . . . . Overload Shots 1 | . . . . . . . . . . . . . . . . 1 . . . . . . . . . . . . . . . . . . . . . . Overflow Damage 2245 | . 8 13 33 10 . . 38 112 61 . 98 . 4 120 . 170 . 11 4 . 47 60 . . 34 358 30 . . 42 4 . . 32 107 572 209 68 Projectiles 445 | . . . 10 . . . 26 21 12 . . . . 32 . 20 . 1 4 . 47 21 . . . 204 30 . . 13 4 . . . . . . . Explosions 822 | . 8 13 23 10 . . 12 91 49 . 98 . 4 88 . 150 . 10 . . . 39 . . 34 154 . . . 29 . . . 10 . . . . Melee 978 | . . . . . . . . . . . . . . . . . . . . . . . . . . . . . . . . . . 22 107 572 209 68 Knockbacks . | . . . . . . . . . . . . . . . . . . . . . . . . . . . . . . . . . . . . . . . Impact . | . . . . . . . . . . . . . . . . . . . . . . . . . . . . . . . . . . . . . . . Kinetic . | . . . . . . . . . . . . . . . . . . . . . . . . . . . . . . . . . . . . . . . Secondary . | . . . . . . . . . . . . . . . . . . . . . . . . . . . . . . . . . . . . . . . Self-Inflicted Damage 393 | 21 . 52 195 16 . . . 43 . . . . 24 . . . . . . 14 . . . . . . . . . 28 . . . . . . . . Shots 15 | 1 . 1 6 1 . . . 1 . . . . 1 . . . . . . 1 . . . . . . . . . 3 . . . . . . . . Rammed . | . . . . . . . . . . . . . . . . . . . . . . . . . . . . . . . . . . . . . . . Targets Rammed . | . . . . . . . . . . . . . . . . . . . . . . . . . . . . . . . . . . . . . . . Kicked . | . . . . . . . . . . . . . . . . . . . . . . . . . . . . . . . . . . . . . . . Crushed . | . . . . . . . . . . . . . . . . . . . . . . . . . . . . . . . . . . . . . . . Highest Temperature 362 | 84 248 234 336 210 90 105 315 307 8 . . . . . 11 22 . 93 143 357 219 225 309 . 222 362 282 141 186 308 304 72 314 155 . . . . Average Temperature 82 | 34 85 60 102 63 66 59 102 116 5 . . . . . 7 12 . 39 51 82 61 87 113 . 66 59 78 57 62 106 93 39 106 79 . . . . Received Heat Transfer 2140 | . 195 186 288 30 . . 213 54 174 . . . 39 84 36 27 . 27 111 . . 27 . . . 36 278 9 13 57 20 13 . 20 20 36 48 99 Effects 15 | . . . 3 . . . 2 . . . . . . . . . . . . 4 . . 1 . . 2 . . . 3 . . . . . . . . Shutdowns 2 | . . . . . . . 1 . . . . . . . . . . . . 1 . . . . . . . . . . . . . . . . . . Energy Bleed 4 | . . . . . . . 1 . . . . . . . . . . . . 2 . . 1 . . . . . . . . . . . . . . . Interference 8 | . . . 3 . . . . . . . . . . . . . . . . . . . . . . 2 . . . 3 . . . . . . . . Matter Decay 1 | . . . . . . . . . . . . . . . . . . . . 1 . . . . . . . . . . . . . . . . . . Siege Activations . | . . . . . . . . . . . . . . . . . . . . . . . . . . . . . . . . . . . . . . . Robots Corrupted 6 | . . . . . . . . . . . . . . . . . . . . . 2 1 . . . . . . . 3 . . . . . . . . Combat Hostiles 2 | . . . . . . . . . . . . . . . . . . . . . . 1 . . . . . . . 1 . . . . . . . . Parts Fried 21 | . 7 2 . . . . . . . . . . . . . . . . . . 2 1 . . . . . . . 9 . . . . . . . . Impact Corruptions . | . . . . . . . . . . . . . . . . . . . . . . . . . . . . . . . . . . . . . . . Robots Melted 8 | . . 1 . . . . . . . . . . . 1 . . . . 1 . . . . . . 2 2 . . 1 . . . . . . . . Combat Hostiles 8 | . . 1 . . . . . . . . . . . 1 . . . . 1 . . . . . . 2 2 . . 1 . . . . . . . . Parts Melted 54 | . . 3 8 . . . 3 1 5 . . . . 2 . . . . 2 . 1 . . . . 13 5 . . 5 2 . 4 . . . . . Heat Transferred 29183 | 100 350 988 2109 370 . . 1924 999 2331 . 74 . . 1617 222 814 . 555 592 3108 296 . . . 211 4391 4028 683 407 1608 740 74 592 . . . . . Parts Sabotaged . | . . . . . . . . . . . . . . . . . . . . . . . . . . . . . . . . . . . . . . . Parts Stolen . | . . . . . . . . . . . . . . . . . . . . . . . . . . . . . . . . . . . . . . . Parts Stripped . | . . . . . . . . . . . . . . . . . . . . . . . . . . . . . . . . . . . . . . . Power Chain Reactions 11 | 2 7 2 . . . . . . . . . . . . . . . . . . . . . . . . . . . . . . . . . . . . Missiles Intercepted . | . . . . . . . . . . . . . . . . . . . . . . . . . . . . . . . . . . . . . . . Alert | -11 -10 -10 -9 -9 -9 -8 -8 -8 -7 -7 -7 -7 -6 -6 -6 -6 -6 -5 -5 -5 -5 -5 -5 -5 -4 -4 -4 -4 -4 -4 -3 -3 -2 -2 -2 -1 -1 -1 ------- Run | Scr Mat Min Mat Min Exi Min Mat Sto Fac Low Low Zio Pro Fac Low Low Dat Pro Fac Was Fac Upp Upp Zhi Pro Fac Ext Cet Arc Hub Res Tes Res Qua Sec Acc Com Ac0 Peak Influence 1784 | 10 252 209 695 192 . . 385 492 966 . . . . 522 . . . . 442 184 258 . . . . 704 602 690 502 1784 1571 337 707 530 331 779 488 . Average Influence 287 | 5 72 89 301 113 . . 203 273 384 . . . . 252 . . . . 223 170 202 . . . . 338 418 388 446 536 1155 247 230 291 163 362 278 . Maximum Alert Level 5 | . 1 1 2 . . . 1 2 3 . . . . 2 . . . . 2 . 1 . . . . 3 2 2 2 5 4 1 3 2 1 3 2 . Low Security (%) 50 | 100 88 92 46 100 . 100 55 31 50 . . . . 49 . . . . 41 100 40 . . . . 52 6 . . 18 . 31 25 1 60 29 25 . Level 1 27 | . 11 7 12 . . . 44 48 18 . . . . 18 . . . . 34 . 59 . . . . 6 45 81 27 22 . 68 70 87 39 43 22 . Level 2 14 | . . . 40 . . . . 19 4 . . . . 31 . . . . 24 . . . . . . 39 48 18 72 44 9 . 3 10 . 11 52 . Level 3 4 | . . . . . . . . . 25 . . . . . . . . . . . . . . . . 1 . . . 2 30 . . . . 15 . . Level 4 3 | . . . . . . . . . . . . . . . . . . . . . . . . . . . . . . 5 59 . . . . . . . Level 5 . | . . . . . . . . . . . . . . . . . . . . . . . . . . . . . . . . . . . . . . . High Security . | . . . . . . . . . . . . . . . . . . . . . . . . . . . . . . 6 . . . . . . . . Max Security . | . . . . . . . . . . . . . . . . . . . . . . . . . . . . . . . . . . . . . . . Squads Dispatched 45 | . 1 . 1 . . . 1 1 5 . . . . 2 . . . 1 3 . 2 . . . . 4 2 . . 3 4 6 2 2 2 2 1 . Investigation 12 | . 1 . . . . . 1 . 3 . . . . 2 . . . . 1 . . . . . . 1 . . . . . 1 1 . . 1 . . Extermination 9 | . . . . . . . . . . . . . . . . . . . . . 1 . . . . 2 . . . . 1 . 1 1 1 1 1 . Reinforcement 18 | . . . 1 . . . . 1 1 . . . . . . . . . 1 . 1 . . . . 1 1 . . 3 2 4 . 1 1 . . . Assault 4 | . . . . . . . . . . . . . . . . . . 1 . . . . . . . . 1 . . . 1 1 . . . . . . Garrison 2 | . . . . . . . . . 1 . . . . . . . . . 1 . . . . . . . . . . . . . . . . . . . Intercept . | . . . . . . . . . . . . . . . . . . . . . . . . . . . . . . . . . . . . . . . Construction Impeded 3 | . . . 1 . . . . . . . . . . . . . . . 1 . . . . . . . . . . 1 . . . . . . . . Haulers Reinforced 2 | . . . . . . . . . . . . . . . . . . . . . . . . . . 1 . . . 1 . . . . . . . . Stealth | -11 -10 -10 -9 -9 -9 -8 -8 -8 -7 -7 -7 -7 -6 -6 -6 -6 -6 -5 -5 -5 -5 -5 -5 -5 -4 -4 -4 -4 -4 -4 -3 -3 -2 -2 -2 -1 -1 -1 --------- Run | Scr Mat Min Mat Min Exi Min Mat Sto Fac Low Low Zio Pro Fac Low Low Dat Pro Fac Was Fac Upp Upp Zhi Pro Fac Ext Cet Arc Hub Res Tes Res Qua Sec Acc Com Ac0 Distress Signals 45 | . 1 . 1 . . . 1 2 . . . . . . . . . . . . . . . . . 2 1 1 . 4 1 1 . . 2 9 19 . Communications Jammed . | . . . . . . . . . . . . . . . . . . . . . . . . . . . . . . . . . . . . . . . Distress Signals . | . . . . . . . . . . . . . . . . . . . . . . . . . . . . . . . . . . . . . . . Times Spotted 515 | . 16 14 24 6 . . 25 25 25 . 7 . 10 18 3 9 . 14 14 6 5 5 1 . 5 18 27 13 4 37 11 26 6 19 39 31 31 21 Peak Tracking Total 21 | . 4 3 4 3 . . 5 4 9 . 4 . 6 3 1 5 . 7 8 5 2 5 . . 4 8 6 5 2 21 6 18 2 7 12 10 9 17 Tactical Retreats 41 | . 1 2 . . . . . . 2 . . . 3 . 1 . . 1 . . . 1 . . . 1 . . . 1 2 . . 4 10 8 3 1 Traps | -11 -10 -10 -9 -9 -9 -8 -8 -8 -7 -7 -7 -7 -6 -6 -6 -6 -6 -5 -5 -5 -5 -5 -5 -5 -4 -4 -4 -4 -4 -4 -3 -3 -2 -2 -2 -1 -1 -1 ------- Run | Scr Mat Min Mat Min Exi Min Mat Sto Fac Low Low Zio Pro Fac Low Low Dat Pro Fac Was Fac Upp Upp Zhi Pro Fac Ext Cet Arc Hub Res Tes Res Qua Sec Acc Com Ac0 Traps Triggered 14 | . . . . . . . . 1 . . . . . 1 . . . . 2 . . . 1 . . 1 1 . . 2 2 . . . 2 1 . . Indirectly 2 | . . . . . . . . . . . . . . . . . . . . . . . . . . . . . . 2 . . . . . . . . Trap Hack Attempts . | . . . . . . . . . . . . . . . . . . . . . . . . . . . . . . . . . . . . . . . Triggered . | . . . . . . . . . . . . . . . . . . . . . . . . . . . . . . . . . . . . . . . Disarmed 10 | . . . . . . . . . . . . . . . . . . . . . . . . . . . . . . . . . . 10 . . . . Reprogrammed . | . . . . . . . . . . . . . . . . . . . . . . . . . . . . . . . . . . . . . . . Reused . | . . . . . . . . . . . . . . . . . . . . . . . . . . . . . . . . . . . . . . . Traps Extracted . | . . . . . . . . . . . . . . . . . . . . . . . . . . . . . . . . . . . . . . . Installed . | . . . . . . . . . . . . . . . . . . . . . . . . . . . . . . . . . . . . . . . Triggered 5 | . . . . . . . . . . 2 . . . . . 1 . . . . . . 1 . 1 . . . . . . . . . . . . . Machines | -11 -10 -10 -9 -9 -9 -8 -8 -8 -7 -7 -7 -7 -6 -6 -6 -6 -6 -5 -5 -5 -5 -5 -5 -5 -4 -4 -4 -4 -4 -4 -3 -3 -2 -2 -2 -1 -1 -1 ---------- Run | Scr Mat Min Mat Min Exi Min Mat Sto Fac Low Low Zio Pro Fac Low Low Dat Pro Fac Was Fac Upp Upp Zhi Pro Fac Ext Cet Arc Hub Res Tes Res Qua Sec Acc Com Ac0 Machines Disabled 71 | . 1 3 4 1 . . 2 11 2 . . . . 5 . . . 1 2 . . . . . . . 1 . 1 19 1 3 1 8 2 . 1 2 Max in Single Turn 12 | . 1 1 1 1 . . 1 2 1 . . . . 3 . . . 1 1 . . . . . . . 1 . . 12 1 1 1 3 1 . 1 1 Network Hub 4 | . . . . . . . . . . . . . . . . . . . . . . . . . . . . . . 4 . . . . . . . . Machines Sabotaged . | . . . . . . . . . . . . . . . . . . . . . . . . . . . . . . . . . . . . . . . Garrisons Compromised . | . . . . . . . . . . . . . . . . . . . . . . . . . . . . . . . . . . . . . . . Overloaded Fab Kills . | . . . . . . . . . . . . . . . . . . . . . . . . . . . . . . . . . . . . . . . Fab Network Shutdowns 5 | . . . . . . . . . 1 . . . . . . . . . . . . . . . . 1 . . . . 1 . 1 . . 1 . . Hacking | -11 -10 -10 -9 -9 -9 -8 -8 -8 -7 -7 -7 -7 -6 -6 -6 -6 -6 -5 -5 -5 -5 -5 -5 -5 -4 -4 -4 -4 -4 -4 -3 -3 -2 -2 -2 -1 -1 -1 --------- Run | Scr Mat Min Mat Min Exi Min Mat Sto Fac Low Low Zio Pro Fac Low Low Dat Pro Fac Was Fac Upp Upp Zhi Pro Fac Ext Cet Arc Hub Res Tes Res Qua Sec Acc Com Ac0 Machines Accessed 116 | . 7 1 1 . 3 . 4 8 9 . . . . 6 1 1 4 . 1 . 3 . 1 4 . 10 10 3 . 2 6 4 3 10 8 4 2 . Terminals 84 | . 7 1 1 . . . 4 8 5 . . . . 5 . . . . . . 1 . 1 . . 7 10 3 . 2 3 4 2 7 8 3 2 . Fabricators 9 | . . . . . . . . . 2 . . . . 1 . . . . . . 1 . . . . 1 . . . . 2 . 1 . . 1 . . Repair Stations . | . . . . . . . . . . . . . . . . . . . . . . . . . . . . . . . . . . . . . . . Recycling Units 2 | . . . . . . . . . . . . . . . . . . . . . . . . . . 2 . . . . . . . . . . . . Scanalyzers 3 | . . . . . . . . . . . . . . . . . . . . . 1 . . . . . . . . . . . . 2 . . . . Garrison Access 5 | . . . . . . . . . 2 . . . . . . . . . 1 . . . . . . . . . . . 1 . . 1 . . . . Total Hacks 446 | . 18 1 2 . 4 . 13 36 38 . . . . 19 1 1 28 . 1 . 12 . 4 17 . 36 30 5 . 9 29 22 18 37 30 26 9 . Successful 359 | . 10 1 1 . 4 . 8 26 28 . . . . 13 1 1 28 . 1 . 9 . 4 17 . 29 24 5 . 7 23 18 14 32 28 22 5 . Failed 84 | . 8 . 1 . . . 5 10 10 . . . . 5 . . . . . . 3 . . . . 7 6 . . 2 6 3 3 5 2 4 4 . Catastrophic 13 | . 2 . . . . . . 1 1 . . . . 1 . . . . . . . . . . . 1 . . . . 2 1 1 . . 1 2 . Database Lockouts 3 | . . . . . . . . . . . . . . 1 . . . . . . . . . . . . . . . . . 1 1 . . . . . Manual 263 | . 8 . 2 . 1 . 12 27 22 . . . . 13 . . . . 1 . 5 . 4 . . 19 22 5 . 7 18 18 12 18 22 20 7 . Terminals 333 | . 18 1 2 . . . 13 36 28 . . . . 15 . . . . . . 3 . 4 . . 29 30 5 . 9 17 22 12 31 30 19 9 . Fabricators 41 | . . . . . . . . . 4 . . . . 4 . . . . . . 5 . . . . 4 . . . . 11 . 6 . . 7 . . Repair Stations . | . . . . . . . . . . . . . . . . . . . . . . . . . . . . . . . . . . . . . . . Recycling Units 3 | . . . . . . . . . . . . . . . . . . . . . . . . . . 3 . . . . . . . . . . . . Scanalyzers 9 | . . . . . . . . . . . . . . . . . . . . . 4 . . . . . . . . . . . . 5 . . . . Garrison Access 9 | . . . . . . . . . 6 . . . . . . . . . 1 . . . . . . . . . . . 1 . . 1 . . . . Terminal Hacks 230 | . 6 1 . . 4 . 4 20 18 . . . . 8 1 1 28 . . . 2 . 4 17 . 17 15 1 . 6 11 14 6 18 14 11 3 . Record 23 | . 1 1 . . 3 . . . . . . . . . . . 11 . . . . . 1 5 . . . . . . . . . 1 . . . . Part Schematic 36 | . . . . . . . . 4 3 . . . . 2 . . 7 . . . . . 3 4 . 3 4 . . . . 3 1 2 . . . . Robot Schematic 7 | . . . . . . . . . . . . . . . . . 7 . . . . . . . . . . . . . . . . . . . . . Robot Analysis 9 | . . . . . . . . . . . . . . . . . . . . . . . . 4 . 1 1 . . 1 . . 1 1 . . . . Prototype ID Bank 10 | . 1 . . . . . . . 1 . . . . . . . 3 . . . . . . 4 . 1 . . . . . . . . . . . . Open Door 11 | . . . . . . . . 3 . . . . . . 1 1 . . . . . . . . . . . 1 . . . 1 . 1 2 1 . . Level Access Points 4 | . . . . . . . . 1 . . . . . . . . . . . . . . . . . . . . . . . 1 . 1 1 . . . Branch Access Points 7 | . . . . . . . . . 1 . . . . 1 . . . . . . 1 . . . . 1 1 . . . 1 . 1 . . . . . Emergency Access Points 2 | . . . . . . . . . 1 . . . . . . . . . . . . . . . . . . . . . . . . . 1 . . . Machine Index 5 | . . . . . . . . . 1 . . . . . . . . . . . . . . . . . . . . . 1 1 . . . 1 1 . Terminal Index 3 | . . . . . . . . . . . . . . 1 . . . . . . . . . . . . . . . . . . 1 . . . 1 . Fabricator Index 3 | . . . . . . . . . . . . . . . . . . . . . . . . . . 1 . . . . . . 1 1 . . . . Scanalyzer Index 2 | . . . . . . . . . 1 . . . . . . . . . . . . . . . . . . . . . . . . 1 . . . . Garrison Index 1 | . . . . . . . . . . . . . . . . . . . . . . . . . . . . . . . . . . 1 . . . . Alert Level 33 | . 2 . . . . . 1 3 3 . . . . 1 . . . . . . 1 . . . . 5 4 . . 2 2 2 . 1 4 2 . . Unreport Threat 39 | . 1 . . . . . 1 5 5 . . . . 3 . . . . . . . . . . . 2 4 . . 1 7 2 . 1 2 5 . . Locate Traps 2 | . . . . . . . . 1 . . . . . . . . . . . . . . . . . . . . . . . . . 1 . . . . Disarm Traps 3 | . . . . . . . . . . . . . . . . . . . . . . . . . . . . . . . . . . 2 1 . . . Transport Status 1 | . 1 . . . . . . . . . . . . . . . . . . . . . . . . . . . . . . . . . . . . . Recall Investigation 3 | . . . . . . . . . . . . . . . . . . . . . . . . . . . . . . . . 1 1 . . 1 . . Recall Extermination 2 | . . . . . . . . . . . . . . . . . . . . . . . . . . . . . . . . . . 1 1 . . . Recall Reinforcements 4 | . . . . . . . . . . . . . . . . . . . . . . . . . . . . . . . . 2 . 1 1 . . . Recall Assault 1 | . . . . . . . . . . . . . . . . . . . . . . . . . . . 1 . . . . . . . . . . . Hauler Manifests 4 | . . . . . . . 1 1 1 . . . . . . . . . . . . . . . . 1 . . . . . . . . . . . . Registered Prototypes 4 | . . . . . . . . . 1 . . . . . . . . . . . . . . . . 1 . . . . . . . 1 1 . . . Zone Layout 9 | . . . . . . . 1 2 . . . . . . . . . . . . . . . . . 1 . . . 2 . . . 1 . 1 1 . EX-Prototype ID Bank 1 | . . . . . 1 . . . . . . . . . . . . . . . . . . . . . . . . . . . . . . . . . Protovariant Controls 1 | . . . . . . . . . . . . . . . . . . . . . . . . . . . . . . . . 1 . . . . . . Fabricator Hacks 25 | . . . . . . . . . 3 . . . . 2 . . . . . . 2 . . . . 2 . . . . 8 . 4 . . 4 . . Load Schematic 10 | . . . . . . . . . 1 . . . . 1 . . . . . . 1 . . . . 1 . . . . 3 . 1 . . 2 . . Build 15 | . . . . . . . . . 2 . . . . 1 . . . . . . 1 . . . . 1 . . . . 5 . 3 . . 2 . . Repair Station Hacks . | . . . . . . . . . . . . . . . . . . . . . . . . . . . . . . . . . . . . . . . Recycling Unit Hacks 3 | . . . . . . . . . . . . . . . . . . . . . . . . . . 3 . . . . . . . . . . . . Report Inventory 1 | . . . . . . . . . . . . . . . . . . . . . . . . . . 1 . . . . . . . . . . . . Retrieve Components 2 | . . . . . . . . . . . . . . . . . . . . . . . . . . 2 . . . . . . . . . . . . Scanalyzer 9 | . . . . . . . . . . . . . . . . . . . . . 4 . . . . . . . . . . . . 5 . . . . Insert Component 7 | . . . . . . . . . . . . . . . . . . . . . 2 . . . . . . . . . . . . 5 . . . . Analyze 2 | . . . . . . . . . . . . . . . . . . . . . 2 . . . . . . . . . . . . . . . . . Garrison Access Hacks . | . . . . . . . . . . . . . . . . . . . . . . . . . . . . . . . . . . . . . . . Unauthorized Hacks 196 | . 8 . 3 . . . 12 13 17 . . . . 6 . . . . 2 . 4 . . . . 14 18 8 . 2 8 8 8 18 28 15 4 . Terminals 76 | . 4 . 1 . . . 4 6 3 . . . . 3 . . . . . . . . . . . 5 9 4 . 1 1 4 2 8 14 5 2 . Track 8 | . . . . . . . . 1 . . . . . . . . . . . . . . . . . 1 . . . . . 1 . 1 3 1 . . Assimilate 10 | . . . . . . . 2 . 1 . . . . 1 . . . . . . . . . . . . 1 . . . . 1 . 2 2 . . . Botnet 43 | . 4 . 1 . . . 2 4 2 . . . . 2 . . . . . . . . . . . 3 7 3 . 1 1 2 2 2 3 3 1 . Detonate 2 | . . . . . . . . . . . . . . . . . . . . . . . . . . . . . . . . . . 1 1 . . . Disrupt 10 | . . . . . . . . . . . . . . . . . . . . . . . . . . 1 1 1 . . . . . 2 4 . 1 . Operators 3 | . . . . . . . . 1 . . . . . . . . . . . . . . . . . . . . . . . . . . 1 1 . . Fabricators 10 | . . . . . . . . . 1 . . . . . . . . . . . 1 . . . . 2 . . . . 2 . 2 . . 2 . . Prioritize 4 | . . . . . . . . . . . . . . . . . . . . . . . . . . 1 . . . . 1 . 1 . . 1 . . Siphon 5 | . . . . . . . . . . . . . . . . . . . . . 1 . . . . 1 . . . . 1 . 1 . . 1 . . Download 1 | . . . . . . . . . 1 . . . . . . . . . . . . . . . . . . . . . . . . . . . . . Repair Stations . | . . . . . . . . . . . . . . . . . . . . . . . . . . . . . . . . . . . . . . . Recycling Units . | . . . . . . . . . . . . . . . . . . . . . . . . . . . . . . . . . . . . . . . Scanalyzers . | . . . . . . . . . . . . . . . . . . . . . . . . . . . . . . . . . . . . . . . Garrison Access 6 | . . . . . . . . . 3 . . . . . . . . . 1 . . . . . . . . . . . 1 . . 1 . . . . Reprogram 6 | . . . . . . . . . 3 . . . . . . . . . 1 . . . . . . . . . . . 1 . . 1 . . . . Data Cores Recovered 2 | . 1 . . . . . . . . . . . . . . . . . . . . . . . . . . . . . 1 . . . . . . . Used 1 | . 1 . . . . . . . . . . . . . . . . . . . . . . . . . . . . . . . . . . . . . Hacking Detections 54 | . 6 . . . . . 2 4 7 . . . . 5 . . . . 1 . 2 . . . . 6 6 1 . 1 4 3 3 . . 2 1 . Full Trace Events 7 | . 1 . . . . . 1 . 2 . . . . 1 . . . . . . . . . . . 1 . . . . . . . . . 1 . . Feedback Events 1 | . . . . . . . . . 1 . . . . . . . . . . . . . . . . . . . . . . . . . . . . . Corruption 1 | . . . . . . . . . 1 . . . . . . . . . . . . . . . . . . . . . . . . . . . . . Feedback Blocked . | . . . . . . . . . . . . . . . . . . . . . . . . . . . . . . . . . . . . . . . Robot Schematics Acquired 7 | . . . . . . . . . . . . . . . . . 7 . . . . . . . . . . . . . . . . . . . . . Robots Built . | . . . . . . . . . . . . . . . . . . . . . . . . . . . . . . . . . . . . . . . Matter . | . . . . . . . . . . . . . . . . . . . . . . . . . . . . . . . . . . . . . . . Time . | . . . . . . . . . . . . . . . . . . . . . . . . . . . . . . . . . . . . . . . Total Robot Build Rating . | . . . . . . . . . . . . . . . . . . . . . . . . . . . . . . . . . . . . . . . Part Schematics Acquired 36 | . . . . . . . . 4 4 . . . . 2 . . 7 . . . 1 . 2 4 . 3 4 . . . . 3 1 1 . . . . Parts Built 14 | . . . . . . . . . 2 . . . . 1 . . . . . . 1 . . . . 1 . . . . 4 . 3 . . 2 . . Matter 3555 | . . . . . . . . . 190 . . . . 212 . . . . . . 213 . . . . 312 . . . . 1140 . 864 . . 624 . . Time 553 | . . . . . . . . . 31 . . . . 35 . . . . . . 50 . . . . 55 . . . . 155 . 153 . . 74 . . Total Part Build Rating 100 | . . . . . . . . . 10 . . . . 6 . . . . . . 5 . . . . 9 . . . . 28 . 24 . . 18 . . Parts Repaired . | . . . . . . . . . . . . . . . . . . . . . . . . . . . . . . . . . . . . . . . Time . | . . . . . . . . . . . . . . . . . . . . . . . . . . . . . . . . . . . . . . . Parts Recycled . | . . . . . . . . . . . . . . . . . . . . . . . . . . . . . . . . . . . . . . . Recycled Matter . | . . . . . . . . . . . . . . . . . . . . . . . . . . . . . . . . . . . . . . . Retrieved Matter . | . . . . . . . . . . . . . . . . . . . . . . . . . . . . . . . . . . . . . . . Retrieved Components 8 | . . . . . . . . . . . . . . . . . . . . . . . . . . 8 . . . . . . . . . . . . Parts Scanalyzed 1 | . . . . . . . . . . . . . . . . . . . . . 1 . . . . . . . . . . . . . . . . . Part Schematics Acquired 1 | . . . . . . . . . . . . . . . . . . . . . 1 . . . . . . . . . . . . . . . . . Parts Damaged . | . . . . . . . . . . . . . . . . . . . . . . . . . . . . . . . . . . . . . . . Bothacking | -11 -10 -10 -9 -9 -9 -8 -8 -8 -7 -7 -7 -7 -6 -6 -6 -6 -6 -5 -5 -5 -5 -5 -5 -5 -4 -4 -4 -4 -4 -4 -3 -3 -2 -2 -2 -1 -1 -1 ------------ Run | Scr Mat Min Mat Min Exi Min Mat Sto Fac Low Low Zio Pro Fac Low Low Dat Pro Fac Was Fac Upp Upp Zhi Pro Fac Ext Cet Arc Hub Res Tes Res Qua Sec Acc Com Ac0 Used RIF Installer . | . . . . . . . . . . . . . . . . . . . . . . . . . . . . . . . . . . . . . . . Robots Hacked . | . . . . . . . . . . . . . . . . . . . . . . . . . . . . . . . . . . . . . . . Non-combat . | . . . . . . . . . . . . . . . . . . . . . . . . . . . . . . . . . . . . . . . Combat . | . . . . . . . . . . . . . . . . . . . . . . . . . . . . . . . . . . . . . . . Robot Hacks Applied . | . . . . . . . . . . . . . . . . . . . . . . . . . . . . . . . . . . . . . . . Relay Couplers Released . | . . . . . . . . . . . . . . . . . . . . . . . . . . . . . . . . . . . . . . . Robots Rewired 18 | . . . . . 2 . . . . . . . . . . . . 2 . . . . . . . . 14 . . . . . . . . . . . Allies Hacked . | . . . . . . . . . . . . . . . . . . . . . . . . . . . . . . . . . . . . . . . Hacks Repelled . | . . . . . . . . . . . . . . . . . . . . . . . . . . . . . . . . . . . . . . . Allies | -11 -10 -10 -9 -9 -9 -8 -8 -8 -7 -7 -7 -7 -6 -6 -6 -6 -6 -5 -5 -5 -5 -5 -5 -5 -4 -4 -4 -4 -4 -4 -3 -3 -2 -2 -2 -1 -1 -1 -------- Run | Scr Mat Min Mat Min Exi Min Mat Sto Fac Low Low Zio Pro Fac Low Low Dat Pro Fac Was Fac Upp Upp Zhi Pro Fac Ext Cet Arc Hub Res Tes Res Qua Sec Acc Com Ac0 Total Allies 55 | . . 2 . 3 2 . 2 . 6 . . . . 1 . . . 3 4 . . . . . . . 20 5 . . . 1 . 1 2 3 . . Largest Group 10 | . . 2 1 3 3 3 5 1 5 . . . . 1 . . . 2 6 . . . . . . . 10 10 8 7 . 1 . 1 1 3 . . Highest-Rated Group 731 | . . 41 10 40 32 32 52 8 106 . . . . 26 . . . 94 175 . . . . . . . 554 731 692 552 . 10 . 44 26 138 . . Highest-Rated Ally 156 | . . 31 10 16 16 16 16 8 32 . . . . 26 . . . 94 30 . . . . . . . 156 140 140 94 . 10 . 44 26 46 . . Total Orders . | . . . . . . . . . . . . . . . . . . . . . . . . . . . . . . . . . . . . . . . Ally Attacks 371 | . . 6 . 9 . . 30 4 24 . . . . . . . . 16 45 . . . . . . . 126 41 26 42 . . . . . 2 . . Total Damage 9665 | . . 105 . 114 . . 262 32 692 . . . . . . . . 360 813 . . . . . . . 3568 1159 876 1594 . . . . . 90 . . Kills 64 | . . 3 . . . . 4 . 7 . . . . . . . . 3 4 . . . . . . . 20 8 4 10 . . . . . 1 . . Allies Corrupted . | . . . . . . . . . . . . . . . . . . . . . . . . . . . . . . . . . . . . . . . Allies Melted 1 | . . . . . . . . . 1 . . . . . . . . . . . . . . . . . . . . . . . . . . . . . Intel | -11 -10 -10 -9 -9 -9 -8 -8 -8 -7 -7 -7 -7 -6 -6 -6 -6 -6 -5 -5 -5 -5 -5 -5 -5 -4 -4 -4 -4 -4 -4 -3 -3 -2 -2 -2 -1 -1 -1 ------- Run | Scr Mat Min Mat Min Exi Min Mat Sto Fac Low Low Zio Pro Fac Low Low Dat Pro Fac Was Fac Upp Upp Zhi Pro Fac Ext Cet Arc Hub Res Tes Res Qua Sec Acc Com Ac0 Robot Analysis Total 9 | . . . . . . . . . . . . . . . . . . . . . . . . 4 . 1 1 . . 1 . . 1 1 . . . . Derelict Logs Recovered 17 | . . 2 . 2 . . . . . . 1 2 1 . 3 2 . 1 . . . 1 1 . 1 . . . . . . . . . . . . . Drone Launches . | . . . . . . . . . . . . . . . . . . . . . . . . . . . . . . . . . . . . . . . Drone Recoveries . | . . . . . . . . . . . . . . . . . . . . . . . . . . . . . . . . . . . . . . . Exploration | -11 -10 -10 -9 -9 -9 -8 -8 -8 -7 -7 -7 -7 -6 -6 -6 -6 -6 -5 -5 -5 -5 -5 -5 -5 -4 -4 -4 -4 -4 -4 -3 -3 -2 -2 -2 -1 -1 -1 ------------- Run | Scr Mat Min Mat Min Exi Min Mat Sto Fac Low Low Zio Pro Fac Low Low Dat Pro Fac Was Fac Upp Upp Zhi Pro Fac Ext Cet Arc Hub Res Tes Res Qua Sec Acc Com Ac0 Turns Passed 14269 | 97 872 953 420 982 410 110 603 466 616 189 171 447 132 383 273 345 39 480 90 245 308 150 173 129 101 510 591 270 76 295 584 131 416 491 548 543 429 201 Spaces Moved 18374 | 57 527 650 195 769 429 177 806 716 990 453 380 1090 323 567 615 561 101 524 115 217 624 306 346 262 196 570 606 222 62 395 756 242 368 676 879 608 606 388 Core . | . . . . . . . . . . . . . . . . . . . . . . . . . . . . . . . . . . . . . . . Treads . | . . . . . . . . . . . . . . . . . . . . . . . . . . . . . . . . . . . . . . . Legs 2363 | 57 527 650 195 769 165 . . . . . . . . . . . . . . . . . . . . . . . . . . . . . . . . . Wheels . | . . . . . . . . . . . . . . . . . . . . . . . . . . . . . . . . . . . . . . . Hover . | . . . . . . . . . . . . . . . . . . . . . . . . . . . . . . . . . . . . . . . Flight 16011 | . . . . . 264 177 806 716 990 453 380 1090 323 567 615 561 101 524 115 217 624 306 346 262 196 570 606 222 62 395 756 242 368 676 879 608 606 388 Fastest Speed 39 | 120 120 120 120 120 50 50 50 39 39 39 39 39 39 39 39 39 39 39 39 39 39 42 42 39 39 39 39 39 39 39 39 39 39 39 39 39 39 39 Average Speed 50 | 120 120 120 120 120 77 50 50 42 39 39 39 39 39 39 39 39 39 39 39 39 40 42 42 40 39 39 39 39 39 39 39 39 39 39 39 39 39 39 Slowest Speed 150 | 120 120 120 120 120 150 50 50 50 39 39 39 39 39 39 39 39 39 39 39 39 42 42 42 42 39 39 50 39 39 39 39 39 39 39 39 39 50 39 Overloaded Moves . | . . . . . . . . . . . . . . . . . . . . . . . . . . . . . . . . . . . . . . . Propulsion Burnouts . | . . . . . . . . . . . . . . . . . . . . . . . . . . . . . . . . . . . . . . . Robots Hopped 147 | . . . . . 2 1 11 10 12 . 1 . . 4 2 . . . 2 1 11 . . . . 19 21 . . 4 4 3 10 1 11 11 3 3 Cave-ins Triggered 1 | . . . . . . . . . . . . . . . . . . . . . . . . . . . . . . . . . 1 . . . . . Teleports 2 | . . . . . . . . . . . . . . . . . . . . . . . . . . . . . . . . . . . 1 . 1 . Exploration Rate (%) 54 | 4 79 88 19 99 91 41 74 77 22 55 59 89 64 27 79 78 74 77 7 86 17 56 62 60 41 16 76 75 73 61 28 37 12 82 74 19 27 31 Regions Visited 38 Branch Regions 26 Pre-discovered Areas 8 | . . . . . . . . . . . 1 1 . . 1 . 1 . . . . . . 3 1 . . . . . . . . . . . . . Known Exits Taken 30 | . . . 1 . . . 1 1 1 1 1 1 1 1 1 1 1 1 . . 1 1 1 1 1 1 1 1 1 1 1 1 1 1 1 1 1 . Unknown Exits Taken 6 | 1 1 1 . 1 1 1 . . . . . . . . . . . . . . . . . . . . . . . . . . . . . . . . Scrap Searched 25 | . . 3 . 1 . . . . . 1 1 3 . . 4 3 . 2 . . . 2 3 . 2 . . . . . . . . . . . . . Spaces Dug 133 | . . . . . . . . . 1 . . . . . 4 . . 2 . . . . . . . 8 . . . 3 29 6 18 8 12 20 12 10 Terrain Destroyed 1555 | 8 40 7 43 21 . . 74 242 29 . 76 . 48 28 21 54 . 56 6 16 . 23 . . 36 64 9 . . 449 42 6 27 76 12 20 12 10 Melee 92 | . . . . . . . . . 1 . . . . . . . . . . . . . . . . . . . . . 5 6 18 8 12 20 12 10 Projectile 142 | . . . . . . . 13 10 4 . . . . 5 5 2 . 6 . 2 . . . . 2 22 9 . . 16 37 . 9 . . . . . AOE 1321 | 8 40 7 43 21 . . 61 232 24 . 76 . 48 23 16 52 . 50 6 14 . 23 . . 34 42 . . . 433 . . . 68 . . . . Actions | -11 -10 -10 -9 -9 -9 -8 -8 -8 -7 -7 -7 -7 -6 -6 -6 -6 -6 -5 -5 -5 -5 -5 -5 -5 -4 -4 -4 -4 -4 -4 -3 -3 -2 -2 -2 -1 -1 -1 --------- Run | Scr Mat Min Mat Min Exi Min Mat Sto Fac Low Low Zio Pro Fac Low Low Dat Pro Fac Was Fac Upp Upp Zhi Pro Fac Ext Cet Arc Hub Res Tes Res Qua Sec Acc Com Ac0 Total 21651 | 72 671 760 286 811 506 196 909 815 1114 464 392 1111 325 666 632 653 100 767 137 287 650 320 371 286 210 709 828 386 102 476 976 256 566 877 989 801 757 417 Wait 1557 | . 73 20 2 2 64 21 20 21 41 6 3 4 . 40 5 64 . 214 . 15 7 3 16 . 4 60 48 127 30 48 168 5 143 163 26 88 4 2 Move 18064 | 56 526 649 194 768 424 174 784 695 966 452 377 1089 322 558 610 560 100 523 112 214 601 305 345 261 195 536 570 221 61 386 747 235 348 673 857 587 601 382 Hop 124 | . . . . . 2 1 10 9 11 . 1 . . 4 2 . . . 1 1 11 . . . . 14 14 . . 4 4 3 8 1 10 9 1 3 Pick Up 79 | 4 2 7 2 1 1 . 1 4 3 . . 2 . 2 . 1 . 1 . 3 2 . 1 3 . 1 1 1 . . 5 . 2 7 3 9 10 . Fast Attach 112 | 3 1 5 5 2 1 . 9 8 6 3 1 8 . . 1 1 . 1 . 1 5 . 1 10 . 7 2 2 . 1 3 2 3 1 12 2 4 1 Attach 31 | 1 . . . . . . . 1 . . . . . 1 . . . . . 1 . . 1 . . 2 . . . 1 2 . . 4 7 1 9 . Detach 9 | . . . . . . . 1 1 . . . . . . . . . . . . 1 . . . . 1 . . . . . . . 1 4 . . . Swap 36 | 1 2 4 7 3 1 . 6 2 3 . . . . 1 . 1 . . . . . . . . . 1 . . . . . . . 1 2 . 1 . Drop 157 | 1 3 14 7 3 4 . 9 8 8 3 1 8 . 2 1 1 . 1 . 4 5 . 2 12 . 8 2 2 . 3 2 2 4 9 5 7 16 . Fire 655 | 6 51 34 53 13 . . 49 36 47 . 7 . 3 30 7 18 . 18 11 45 9 4 1 . 6 70 55 11 7 25 29 1 9 . . . . . Melee 243 | . . . 3 . . . . . 1 . . . . . . . . . . . . . . . . . . . . . 5 8 25 17 38 51 66 29 Ram . | . . . . . . . . . . . . . . . . . . . . . . . . . . . . . . . . . . . . . . . Kick . | . . . . . . . . . . . . . . . . . . . . . . . . . . . . . . . . . . . . . . . Crush . | . . . . . . . . . . . . . . . . . . . . . . . . . . . . . . . . . . . . . . . Escape Stasis 12 | . . . . . . . . 3 . . . . . 2 . . . . . . . . . . . . . . . . 2 . 1 . 4 . . . Rewire 46 | . . . . . 9 . . . . . . . . . . . . 2 . . . . . . . . 35 . . . . . . . . . . . Trap . | . . . . . . . . . . . . . . . . . . . . . . . . . . . . . . . . . . . . . . . Miscellaneous 526 | . 13 27 13 19 . . 20 27 28 . 2 . . 26 6 7 . 7 13 3 9 8 4 . 5 9 101 22 4 8 9 . 23 . 21 47 45 . Route ------- -11/Scrapyard -10/Materials (discovered 5 exits: *Mat x3 / *Min x2) -10/Mines (discovered 2 exits: *Mat x2) -9/Materials -9/Mines (discovered 3 exits: *Mat x2 / *Exi) -9/Exiles (discovered 2 exits: [*Min x2]) -8/Mines -8/Materials (discovered 3 exits: *Fac x2 / *Sto) -8/Storage -7/Factory (discovered 2 exits: *Low x2) -7/Lower Caves -7/Lower Caves (discovered 2 exits: *Fac / *Zio) -7/Zion -6/Proximity Caves -6/Factory (discovered 3 exits: *Fac / *Low x2) -6/Lower Caves -6/Lower Caves (discovered 2 exits: *Fac / *Dat) -6/Data Miner -5/Proximity Caves -5/Factory (discovered 4 exits: Fac x3 / *Upp) -5/Waste -5/Factory (discovered 2 exits: *Upp x2) -5/Upper Caves -5/Upper Caves (discovered 2 exits: *Fac / *Zhi) -5/Zhirov -4/Proximity Caves -4/Factory (discovered 6 exits: Res / Upp x2 / *Ext x2 / Arm) -4/Extension (discovered 3 exits: *Res x2 / *Cet) -4/Cetus -4/Archives (discovered 3 exits: Res / *Hub x2) -4/Hub_04(d) (discovered 3 exits: *Res x3) -3/Research (discovered 3 exits: *Res / *Tes x2) -3/Testing -2/Research (discovered 2 exits: *Qua x2) -2/Quarantine (discovered 2 exits: *Acc / *Sec) -2/Section 7 -1/Access -1/Command (discovered 2 exits: [*Sur] / *Ac0) -1/Access_0 History --------- Turn | Location | Event 1 | -11/Scrapyard | Discovered new exit (range 1) 9 | -11/Scrapyard | Upgraded with Propulsion slot (x1) 9 | -11/Scrapyard | Upgraded with Utility slot (x1) 27 | -11/Scrapyard | Upgraded with Weapon slot (x1) 98 | -11/Scrapyard | Entered Materials 135 | -10/Materials | Discovered new exit (range 13) 316 | -10/Materials | Build established: Mutant 335 | -10/Materials | Discovered new exit (range 15) 433 | -10/Materials | Discovered new exit (range 16) 538 | -10/Materials | Discovered new exit (range 10) 807 | -10/Materials | Discovered new exit (range 12) 915 | -10/Materials | Reached level 2 970 | -10/Materials | Entered Mines 1044 | -10/Mines | A weapon hastily lodged in a ceiling crevice suddenly fell to the ground 1238 | -10/Mines | Upgraded with Propulsion slot (x1) 1266 | -10/Mines | Learned Materials trap positions 1282 | -10/Mines | Learned location of 1 exit from Materials 1302 | -10/Mines | Reached level 3 1611 | -10/Mines | Discovered new exit (range 7) 1676 | -10/Mines | Build established: Scavenger-Mutant 1882 | -10/Mines | Discovered new exit (range 7) 1923 | -10/Mines | Entered Materials 1923 | -9/Materials | Accompanied by 1 ally 1924 | -9/Materials | Identified exit to Mines 1925 | -9/Materials | Loaded intel: 16 trap records 1925 | -9/Materials | Reached level 4 2103 | -9/Materials | Reached level 5 2172 | -9/Materials | Destroyed 11 combat bots 2187 | -9/Materials | Reached level 6 2194 | -9/Materials | Core integrity fell below 50% 2219 | -9/Materials | Core integrity fell below 20% 2245 | -9/Materials | Destroyed 7 combat bots 2264 | -9/Materials | Build established: Hacker-Mutant 2343 | -9/Materials | Entered Mines 2345 | -9/Mines | Reached level 7 2355 | -9/Mines | Upgraded with Power slot (x1) 2355 | -9/Mines | Upgraded with Utility slot (x1) 2375 | -9/Mines | Learned Materials security intel 2411 | -9/Mines | Assisted by bots powering up and referring to "LRC-V3" 2466 | -9/Mines | Learned Materials garrison access intel 2584 | -9/Mines | Received a Rocket Launcher from a helpful Derelict 2693 | -9/Mines | Discovered new exit (range 5) 2963 | -9/Mines | Deemed a non-threat by the Exiles lab entrance 2964 | -9/Mines | Discovered new exit (range 5) 3170 | -9/Mines | Discovered new exit (range 8) 3325 | -9/Mines | Entered Exiles 3325 | -9/Exiles | Found Exiles lab destroyed 3325 | -9/Exiles | Accompanied by 1 ally 3341 | -9/Exiles | Discovered new exit (range 16) 3521 | -9/Exiles | Opened EX-Vault 3527 | -9/Exiles | Upgraded with Propulsion slot (x1) 3532 | -9/Exiles | Found Flying Fortress v7 3685 | -9/Exiles | Discovered new exit (range 10) 3735 | -9/Exiles | Entered Mines 3735 | -8/Mines | Accompanied by 3 allies 3737 | -8/Mines | Reached level 8 3819 | -8/Mines | Discovered new exit (range 12) 3845 | -8/Mines | Entered Materials 3845 | -8/Materials | Accompanied by 3 allies 3847 | -8/Materials | Loaded intel: 1 garrison access location 3847 | -8/Materials | Reached level 9 3904 | -8/Materials | Upgraded with Utility slot (x1) 4102 | -8/Materials | Reached level 10 4137 | -8/Materials | Discovered new exit (range 12) 4151 | -8/Materials | Identified exit to Storage 4191 | -8/Materials | Discovered new exit (range 17) 4256 | -8/Materials | Discovered new exit (range 7) 4258 | -8/Materials | Identified exit to Factory 4390 | -8/Materials | Reached level 11 4448 | -8/Materials | Entered Storage 4448 | -8/Storage | Accompanied by 1 ally 4609 | -8/Storage | Reached level 12 4621 | -8/Storage | Upgraded with Propulsion slot (x1) 4621 | -8/Storage | Upgraded with Utility slot (x1) 4621 | -8/Storage | Upgraded with Weapon slot (x1) 4689 | -8/Storage | Found Prototype Protection 4689 | -8/Storage | Identified Lgt. Regenerative Plating 4914 | -8/Storage | Entered Factory 4916 | -7/Factory | Reached level 13 4939 | -7/Factory | Identified exit to Lower Caves 5037 | -7/Factory | Fabricated Fission Core (x2) 5103 | -7/Factory | Reached level 14 5110 | -7/Factory | Local fabrication network quarantined 5414 | -7/Factory | Reached level 15 5438 | -7/Factory | Garrison activated, responded to threat 5530 | -7/Factory | Entered Lower Caves 5604 | -7/Lower Caves | Discovered new exit (range 16) 5610 | -7/Lower Caves | Identified exit to Lower Caves 5719 | -7/Lower Caves | Entered another Lower Caves area 5725 | -7/Lower Caves | Discovered new exit (range 13) 5787 | -7/Lower Caves | Encountered a Warlord checkpoint 5813 | -7/Lower Caves | Learned location of Extension (-4) 5836 | -7/Lower Caves | Discovered new exit (range 16) 5859 | -7/Lower Caves | Ambushed by wild Derelicts 5870 | -7/Lower Caves | Identified exit to Zion 5890 | -7/Lower Caves | Entered Zion 5892 | -7/Zion | Reached level 16 5893 | -7/Zion | Destroyed 7 combat bots 5901 | -7/Zion | Discovered new exit (range 17) 5917 | -7/Zion | Received a hallucinogenic algorithm 5933 | -7/Zion | Found Prototype Device 5933 | -7/Zion | Identified Phasing AFG 5956 | -7/Zion | Build established: Hacker-Scout 5959 | -7/Zion | System corruption cleaned by Quarantine Array 6002 | -7/Zion | Learned Factory machine intel 6060 | -7/Zion | Learned Factory emergency access door positions 6070 | -7/Zion | Learned Factory stockpile data 6126 | -7/Zion | Found Prototype Processor 6126 | -7/Zion | Identified Exp. Core Analyzer 6128 | -7/Zion | Upgraded with Utility slot (x1) 6128 | -7/Zion | Found Prototype Processor 6128 | -7/Zion | Identified Exp. Melee Analysis Suite 6130 | -7/Zion | Found Prototype Processor 6130 | -7/Zion | Identified Spectral Analyzer 6133 | -7/Zion | Found Prototype Processor 6133 | -7/Zion | Identified Exp. Targeting Computer 6136 | -7/Zion | Found Prototype Processor 6136 | -7/Zion | Identified Exp. Signal Interpreter 6337 | -7/Zion | Identified exit to Proximity Caves 6337 | -7/Zion | Entered Proximity Caves 6345 | -6/Proximity Caves | Spotted B-75 Beast 6412 | -6/Proximity Caves | Identified exit to Factory 6463 | -6/Proximity Caves | Reached level 17 6469 | -6/Proximity Caves | Entered Factory 6472 | -6/Factory | Loaded intel: 229 machine locations 6493 | -6/Factory | Discovered new exit (range 11) 6514 | -6/Factory | Fabricated Adv. Hacking Suite (x1) 6531 | -6/Factory | Reached level 18 6613 | -6/Factory | Discovered new exit (range 13) 6623 | -6/Factory | Identified exit to Factory 6664 | -6/Factory | Upgraded with Utility slot (x1) 6724 | -6/Factory | Identified exit to Lower Caves 6755 | -6/Factory | Central database locked down 6852 | -6/Factory | Entered Lower Caves 6853 | -6/Lower Caves | Encountered a Warlord checkpoint 6884 | -6/Lower Caves | Learned location of 1 exit from Factory 6935 | -6/Lower Caves | Learned Factory interactive machine intel 6964 | -6/Lower Caves | Spotted B-75 Beast 7073 | -6/Lower Caves | Attracted the attention of an 0b10 checkpoint 7117 | -6/Lower Caves | Discovered new exit (range 20) 7124 | -6/Lower Caves | Identified exit to Lower Caves 7125 | -6/Lower Caves | Entered another Lower Caves area 7127 | -6/Lower Caves | Reached level 19 7131 | -6/Lower Caves | Discovered exit to Factory (range 20) 7190 | -6/Lower Caves | Upgraded with Utility slot (x1) 7412 | -6/Lower Caves | Learned 4 Factory zone layouts 7440 | -6/Lower Caves | Learned Factory terminal intel 7445 | -6/Lower Caves | Discovered new exit (range 13) 7450 | -6/Lower Caves | Identified exit to Data Miner 7470 | -6/Lower Caves | Entered Data Miner 7470 | -6/Data Miner | Discovered new exit (range 6) 7474 | -6/Data Miner | Met Data Miner 7490 | -6/Data Miner | Learned location of Section 7 (-2) 7490 | -6/Data Miner | Acquired the access code to Warlord's prototype stash 7496 | -6/Data Miner | Received God Mode back door access code from Data Miner 7509 | -6/Data Miner | Identified exit to Proximity Caves 7509 | -6/Data Miner | Entered Proximity Caves 7511 | -5/Proximity Caves | Reached level 20 7612 | -5/Proximity Caves | Escorted by Enhanced Grunt 7620 | -5/Proximity Caves | Attracted the attention of an 0b10 outpost 7695 | -5/Proximity Caves | Build established: Wizard-Scout 7733 | -5/Proximity Caves | Discovered exit to Factory (range 22) 7741 | -5/Proximity Caves | Learned location of 1 exit from Factory 7870 | -5/Proximity Caves | Received a Behemoth hack from an annoying Tinkerer 7989 | -5/Proximity Caves | Entered Factory 7989 | -5/Factory | Accompanied by 2 allies 7990 | -5/Factory | Identified exit to Factory 7991 | -5/Factory | Reached level 21 7992 | -5/Factory | Loaded intel: 46 interactive machine locations 7993 | -5/Factory | Loaded intel: 20 terminal locations 8014 | -5/Factory | Discovered new exit (range 23) 8023 | -5/Factory | Spotted B-75 Beast 8030 | -5/Factory | Garrison activated, responded to threat 8057 | -5/Factory | Reached level 22 8079 | -5/Factory | Sucked down chute 8079 | -5/Factory | Entered Waste 8086 | -5/Waste | Spotted C-40 Crusher 8086 | -5/Waste | Spotted C-40 Crusher 8094 | -5/Waste | EMP discharged 8102 | -5/Waste | Spotted C-40 Crusher 8121 | -5/Waste | Crushed by Compactor (0 parts destroyed, 2 dropped) 8126 | -5/Waste | Spotted C-40 Crusher 8147 | -5/Waste | Spotted C-40 Crusher 8170 | -5/Waste | Destroyed C-40 Crusher 8194 | -5/Waste | EMP discharged 8194 | -5/Waste | System corruption reached 10% 8226 | -5/Waste | Spotted C-40 Crusher 8258 | -5/Waste | Destroyed C-40 Crusher 8276 | -5/Waste | Destroyed C-40 Crusher 8284 | -5/Waste | Found Damper Plating 8294 | -5/Waste | EMP discharged 8303 | -5/Waste | Discovered new exit (range 25) 8312 | -5/Waste | Destroyed C-40 Crusher 8324 | -5/Waste | Identified exit to Factory 8324 | -5/Waste | Entered Factory 8355 | -5/Factory | Discovered new exit (range 17) 8363 | -5/Factory | Identified exit to Upper Caves 8498 | -5/Factory | Fabricated Exp. Terrain Scanner? 8515 | -5/Factory | Discovered exit to Upper Caves (range 18) 8632 | -5/Factory | Entered Upper Caves 8659 | -5/Upper Caves | Identified exit to Upper Caves 8782 | -5/Upper Caves | Entered another Upper Caves area 8788 | -5/Upper Caves | Discovered exit to Factory (range 26) 8832 | -5/Upper Caves | Spotted B-75 Beast 8862 | -5/Upper Caves | Learned Factory garrison access intel 8904 | -5/Upper Caves | Discovered new exit (range 9) 8954 | -5/Upper Caves | Identified exit to Zhirov 8955 | -5/Upper Caves | Entered Zhirov 8955 | -5/Zhirov | Discovered new exit (range 3) 8965 | -5/Zhirov | Met Zhirov 8975 | -5/Zhirov | Learned location of Quarantine (-2) 8975 | -5/Zhirov | Learned location of Testing (-3) 8975 | -5/Zhirov | Learned location of Command (-1) 8977 | -5/Zhirov | Zhirov requested help retrieving the SGEMP Prototype 8984 | -5/Zhirov | Found Alien Artifact 8984 | -5/Zhirov | Identified Integrated Dissipator 8984 | -5/Zhirov | Installed Integrated Dissipator, increased core heat dissipation (+2%) 9059 | -5/Zhirov | Found Alien Artifact 9084 | -5/Zhirov | Identified exit to Proximity Caves 9084 | -5/Zhirov | Entered Proximity Caves 9086 | -4/Proximity Caves | Reached level 23 9169 | -4/Proximity Caves | Discovered exit to Factory (range 22) 9185 | -4/Proximity Caves | Entered Factory 9186 | -4/Factory | Loaded intel: 4 garrison access locations 9187 | -4/Factory | Reached level 24 9187 | -4/Factory | Upgraded with Utility slot (x1) 9258 | -4/Factory | Identified exit to Upper Caves 9258 | -4/Factory | Identified exit to Extension 9258 | -4/Factory | Identified exit to Armory 9289 | -4/Factory | Discovered new exit (range 18) 9431 | -4/Factory | Fabricated Gui. Micro-nuke Launcher? 9483 | -4/Factory | Local fabrication network quarantined 9534 | -4/Factory | Reached level 25 9620 | -4/Factory | Core integrity fell below 50% 9695 | -4/Factory | Entered Extension 9788 | -4/Extension | Rescued A7 9810 | -4/Extension | Identified exit to Cetus 9867 | -4/Extension | Discovered new exit (range 29) 9870 | -4/Extension | Rescued a captive Derelict 9872 | -4/Extension | Rescued a captive Derelict 9885 | -4/Extension | Spotted B-86 Titan 9887 | -4/Extension | Spotted B-86 Titan 9923 | -4/Extension | Allies destroyed B-86 Titan 9935 | -4/Extension | Allies destroyed B-86 Titan 9945 | -4/Extension | First assault squad dispatched 10087 | -4/Extension | Reached level 26 10100 | -4/Extension | Rescued a captive Derelict 10100 | -4/Extension | Rescued a captive Derelict 10108 | -4/Extension | Rescued a captive Derelict 10231 | -4/Extension | Discovered new exit (range 30) 10244 | -4/Extension | Identified exit to Research 10286 | -4/Extension | Entered Cetus 10286 | -4/Cetus | Accompanied by 10 allies 10291 | -4/Cetus | Acquired a Cetus Manufacturing Module code from A7 10292 | -4/Cetus | Spotted Cetus Guard 10292 | -4/Cetus | Spotted Cetus Guard 10296 | -4/Cetus | Spotted Cetus Guard 10304 | -4/Cetus | Destroyed Cetus Guard 10315 | -4/Cetus | Allies destroyed Cetus Guard 10315 | -4/Cetus | Destroyed Cetus Guard 10316 | -4/Cetus | Spotted Cetus Guard 10320 | -4/Cetus | Allies destroyed Cetus Guard 10362 | -4/Cetus | Started Cetus Manufacturing Module 10387 | -4/Cetus | Manufactured an Enhanced Grunt 10393 | -4/Cetus | Escorted A7 to Cetus Mainframe 10401 | -4/Cetus | Discovered new exit (range 26) 10412 | -4/Cetus | Manufactured an Enhanced Grunt 10437 | -4/Cetus | Manufactured an Enhanced Grunt 10462 | -4/Cetus | Manufactured an Enhanced Grunt 10487 | -4/Cetus | Manufactured an Enhanced Grunt 10549 | -4/Cetus | Identified exit to Archives 10556 | -4/Cetus | Entered Archives 10556 | -4/Archives | Accompanied by 8 allies 10561 | -4/Archives | Received a hacking code to weaken MAIN.C 10562 | -4/Archives | Reached level 27 10572 | -4/Archives | Discovered exit to Research (range 21) 10578 | -4/Archives | Discovered new exit (range 25) 10581 | -4/Archives | Discovered new exit (range 24) 10609 | -4/Archives | Identified exit to Hub_04(d) 10632 | -4/Archives | Entered Hub_04(d) 10632 | -4/Hub_04(d) | Accompanied by 7 allies 10656 | -4/Hub_04(d) | Discovered exit to Research (range 22) 10719 | -4/Hub_04(d) | Discovered exit to Research (range 13) 10790 | -4/Hub_04(d) | Discovered exit to Research (range 30) 10796 | -4/Hub_04(d) | Upgraded with Utility slot (x1) 10812 | -4/Hub_04(d) | Spotted B-86 Titan 10869 | -4/Hub_04(d) | Allies destroyed B-86 Titan 10883 | -4/Hub_04(d) | Network Hub disabled 10884 | -4/Hub_04(d) | System corruption reached 10% 10891 | -4/Hub_04(d) | Network Hub disabled 10906 | -4/Hub_04(d) | Network Hub disabled 10906 | -4/Hub_04(d) | Network Hub disabled 10907 | -4/Hub_04(d) | High security lockdown imminent 10914 | -4/Hub_04(d) | Spotted Lightning 10914 | -4/Hub_04(d) | Spotted Lightning 10914 | -4/Hub_04(d) | Spotted Lightning 10915 | -4/Hub_04(d) | Spotted Lightning 10915 | -4/Hub_04(d) | Spotted Lightning 10915 | -4/Hub_04(d) | Spotted Lightning 10916 | -4/Hub_04(d) | Spotted Lightning 10916 | -4/Hub_04(d) | Spotted Lightning 10916 | -4/Hub_04(d) | Spotted Lightning 10927 | -4/Hub_04(d) | Entered Research 10929 | -3/Research | Reached level 28 11127 | -3/Research | Fabricated Exp. Hacking Suite (x1) 11163 | -3/Research | Fabricated Exp. Hacking Suite (x1) 11197 | -3/Research | Fabricated Exp. System Shield (x1) 11230 | -3/Research | Local fabrication network quarantined 11232 | -3/Research | Fabricated Exp. System Shield (x1) 11294 | -3/Research | Discovered new exit (range 30) 11348 | -3/Research | Identified exit to Research 11350 | -3/Research | Found Gamma Bomb Array 11427 | -3/Research | First assault squad dispatched 11432 | -3/Research | Identified exit to Testing 11436 | -3/Research | Found Enh. Force Lance 11446 | -3/Research | Incoming assault squad redirected 11464 | -3/Research | Upgraded with Weapon slot (x1) 11511 | -3/Research | Entered Testing 11513 | -3/Testing | Reached level 29 11521 | -3/Testing | Spotted PX-7QBK9253AS 11546 | -3/Testing | Protovariant out of control (PX-7QBK9253AS) 11546 | -3/Testing | Unleashed a protovariant (PX-7QBK9253AS) 11563 | -3/Testing | Found Prototype Hackware 11563 | -3/Testing | Identified System Mapper 11565 | -3/Testing | Incoming assault squad redirected 11601 | -3/Testing | Central database locked down 11642 | -3/Testing | Entered Research 11644 | -2/Research | Reached level 30 11747 | -2/Research | Central database locked down 11747 | -2/Research | Identified exit to Quarantine 11880 | -2/Research | Fabricated Nanosword (x1) 11933 | -2/Research | Fabricated Nanosword (x1) 11987 | -2/Research | Fabricated Nanosword (x1) 12040 | -2/Research | Local fabrication network quarantined 12046 | -2/Research | Crushed by falling debris 12054 | -2/Research | Spotted B-90 Cyclops 12058 | -2/Research | Entered Quarantine 12101 | -2/Quarantine | Identified exit to Access 12128 | -2/Quarantine | Found Alien Impact Weapon 12225 | -2/Quarantine | Cryocooling Duct disabled 12240 | -2/Quarantine | Ambient heat levels rising (+20) 12240 | -2/Quarantine | Non-combat units ordered to evacuate 12280 | -2/Quarantine | Found Alien Artifact 12335 | -2/Quarantine | Identified Transdimensional Reconstructor 12335 | -2/Quarantine | Identified Core Stripper 12335 | -2/Quarantine | Identified Subatomic Replicator 12406 | -2/Quarantine | Reached level 31 12421 | -2/Quarantine | Found Alien Slashing Weapon 12421 | -2/Quarantine | Identified Sigix Broadsword 12432 | -2/Quarantine | Spotted Alpha 7 12439 | -2/Quarantine | Found Alien Launcher 12453 | -2/Quarantine | Found Alien Artifact 12473 | -2/Quarantine | Identified Core Reset Matrix 12473 | -2/Quarantine | Identified Sigix Terminator 12477 | -2/Quarantine | Found Transdimensional Reconstructor 12483 | -2/Quarantine | Found Alien Artifact 12521 | -2/Quarantine | Spotted Fortress 12539 | -2/Quarantine | Discovered new exit (range 27) 12549 | -2/Quarantine | Identified exit to Section 7 12549 | -2/Quarantine | Entered Section 7 12579 | -2/Section 7 | Found Alien Artifact 12579 | -2/Section 7 | Identified Integrity Redistributor 12579 | -2/Section 7 | Used Integrity Redistributor, redistributed integrity from core (-20) 12613 | -2/Section 7 | Spotted S7 Guard 12617 | -2/Section 7 | Found Alien Artifact 12617 | -2/Section 7 | Identified Core Regenerator 12617 | -2/Section 7 | Used Core Regenerator, restored core integrity (+60) 12666 | -2/Section 7 | Upgraded with Power slot (x1) 12672 | -2/Section 7 | Spotted S7 Guard 12676 | -2/Section 7 | Found Alien Artifact 12676 | -2/Section 7 | Identified Integrated Singularity Reactor 12676 | -2/Section 7 | Installed Integrated Singularity Reactor, increased core energy generation (+2%) 12682 | -2/Section 7 | Spotted S7 Guard 12683 | -2/Section 7 | Found Alien Artifact 12683 | -2/Section 7 | Identified Integrated Heat Negator 12683 | -2/Section 7 | Installed Integrated Heat Negator, increased core heat dissipation (+2%) 12704 | -2/Section 7 | Spotted S7 Guard 12709 | -2/Section 7 | Found Alien Artifact 12709 | -2/Section 7 | Identified Core Membrane 12709 | -2/Section 7 | Installed Core Membrane, gained immunity to corruption 12731 | -2/Section 7 | Found Alien Artifact 12731 | -2/Section 7 | Identified Integrated Reactor 12731 | -2/Section 7 | Installed Integrated Reactor, increased core energy generation (+2%) 12820 | -2/Section 7 | Identified Dimensional Node Initializer 12820 | -2/Section 7 | Initialized slip node 12828 | -2/Section 7 | Spotted Executioner 12829 | -2/Section 7 | Spotted Executioner 12846 | -2/Section 7 | Spotted B-99 Colossus 12874 | -2/Section 7 | Found Integrated Reactor 12874 | -2/Section 7 | Installed Integrated Reactor, increased core energy generation (+2%) 12876 | -2/Section 7 | Found Integrated Reactor 12876 | -2/Section 7 | Installed Integrated Reactor, increased core energy generation (+2%) 12890 | -2/Section 7 | Found Alien Artifact 12890 | -2/Section 7 | Identified LRC Boosters 12890 | -2/Section 7 | Installed LRC Boosters, increased mass support (+10) 12894 | -2/Section 7 | Found Alien Artifact 12894 | -2/Section 7 | Identified LRC Energy Well 12894 | -2/Section 7 | Installed LRC Energy Well, increased energy storage capacity (+250) 12943 | -2/Section 7 | Spotted Striker 12943 | -2/Section 7 | Spotted Striker 12986 | -2/Section 7 | Warped through subspace to slip node 13097 | -2/Section 7 | Entered Access 13099 | -1/Access | Reached level 32 13099 | -1/Access | Reached level 33 13207 | -1/Access | Discovered new exit (range 30) 13258 | -1/Access | Core integrity fell below 50% 13434 | -1/Access | Fabricated Femtoactuators (x1) 13480 | -1/Access | Fabricated Exp. Actuator Array? 13488 | -1/Access | Local fabrication network quarantined 13560 | -1/Access | Upgraded with Weapon slot (x1) 13560 | -1/Access | Found Nanosword 13591 | -1/Access | Allied Derelicts emerged from ambush trap array 13640 | -1/Access | Identified exit to Command 13640 | -1/Access | Entered Command 13642 | -1/Command | Reached level 34 13778 | -1/Command | Used Subatomic Replicator to create Alien Launcher 13781 | -1/Command | Identified Supercharged Sigix Terminator 13849 | -1/Command | Reached level 35 13850 | -1/Command | Upgraded with Utility slot (x1) 13864 | -1/Command | Spotted M Guard 13871 | -1/Command | Spotted Combat Programmer 13871 | -1/Command | Spotted Combat Programmer 13896 | -1/Command | Met MAIN.C 13900 | -1/Command | 0b10 Conduit disabled 13920 | -1/Command | Destroyed MAIN.C Shell 13921 | -1/Command | MAIN.C activated Command garrisons 13939 | -1/Command | Reached level 36 13939 | -1/Command | Destroyed MAIN.C 13943 | -1/Command | Found Prototype Processor 13970 | -1/Command | Found Prototype Device 13973 | -1/Command | Found Prototype Device 13983 | -1/Command | Discovered new exit (range 15) 14025 | -1/Command | Warped through subspace to slip node 14025 | -1/Command | Discovered new exit (range 5) 14051 | -1/Command | Identified Beam Splitter 14052 | -1/Command | Identified Exp. Shock Absorption System 14069 | -1/Command | Identified exit to Access_0 14069 | -1/Command | Entered Access_0 14070 | -1/Access_0 | Met Architect 14071 | -1/Access_0 | Reached level 37 14129 | -1/Access_0 | Destroyed A8 14152 | -1/Access_0 | Subspace Access Node disabled 14156 | -1/Access_0 | A6 warped into view 14167 | -1/Access_0 | Subspace Access Node disabled 14200 | -1/Access_0 | Core integrity fell below 20% 14203 | -1/Access_0 | Destroyed A6 14222 | -1/Access_0 | Subspace Access Node disabled 14244 | -1/Access_0 | A5 warped into view 14270 | -1/Access_0 | Destroyed by Architect with Modified Quantum Sheargun Last Messages --------------- 14206_ Quantum Shear penetrates Wall. 14206_ Knocked back. 14208_ Penetrated by Quantum Shear. 14208_ Quantum Shear penetrates Wall. 14219_ Penetrated by Quantum Shear. 14219_ Quantum Shear penetrates Earth. 14222_ Subspace Access Node disabled. 14223_ Quantum Shear penetrates Wall. 14231_ Penetrated by Quantum Shear. A5 warps into view. 14246_ Quantum Shear penetrates Wall. 14247_ Penetrated by HV Slug. 14247_ Knocked back. 14247_ Penetrated by HV Slug. 14248_ Knocked back. 14248_ HV Slug penetrates Wall. 14252_ HV Slug penetrates Architect Shell. 14254_ HV Slug penetrates Wall. 14254_ Penetrated by HV Slug. 14254_ Quantum Shear penetrates Wall. Map ----- +----------------------------------------------------+ | ?????????????????????????????????????????????? | | ????????#?????????? ????##??#????????????????? | | ??????????#?????????? ???????#???????????????? | | ??????????#????#?? ??????#??#????????????????? | | ???#???#???????#??? ????#????#?#???#?????????? | | ?????????????#?#?? ???#?????#???????#????#???# | | ?????????????#?##???? #?????##???????? #?#??"# | | ?????????###"???"??? ??"?""?###??#?##????#"? " | | ???#??????##??"?? ""?"###???#??##? ??#" ? | | ??#????##????" ?? ?"??######### ??? | | ???#?#????#?"? ?""##????####? ? ??? | | ??#????#????"" ?"??###?###?? ??##"? | | ????????#???#" "#?####?#??#? ##?"? ? | | ??#????????##" ?"?###??##### #?#??"# | | ??####?#????#" "#?########? ###???? | | ????????#?#?#" ?"?#####? ?? ???## | | ??#????#??###" ??#?#### ? ??#### | | ?????#???#?#"" ?""##### ?? ? ??##### | | ?#?#?#?#??##"" ?"####? ####? | | ?????????#?##" "##?#?# ! ##?## | | ##?####?#?##?"""" ?"?#?##?? ! ##?## | | #????###?###?"?"" """""###?? ? ##### | | ???######?####?## #?##?###?# ? ##### | | #?##?##??###??### ##?#?###??#### ########? | | #???####???###?## #?#######?#?## #####?### | | ???######??###### @############## #####?#?# | | #?#???##?###??### ### ######## ######### | | ???#?#????###?#?# ### ######## ######### | | #?#????###?##?### ;# ####?### ######### | | #??######??###### # ####### ########? | | ?######?#???#?### # ##?### #####?### | | #??#??#?######?## ## ##### ###?##### | | ?####???#?####### ;#### #### ######### | | ??#??#########?## g0g##### | | ?##??##??##?###?# ##### ## #### g | | ###???###?###??## ######## #### ######### | | #?###?#?##??###?# g ####?## ######### | | #####??#??#####?# ###### ############## | | ###??########?### "# ###?########### | | ?#?#?#?#?######## ## ####?########### | | ##?############## "# ##########?##### | | #?###??####?##### ## # ############### | | ?#####?########## ## ## ############### | | ??####?####?#### ## ## ############### | | #?####?######### ## ############## | | ##?############# "#######?####### | | ##?############# ### "############### | | #########?##?### #### "############### | | ################ ##### "############### | | ?##?############### #####" #######?#####?## | +----------------------------------------------------+ Best States ------------- Heat Dissipation 127 Energy Generation 117 Energy Capacity 1295 Matter Stores 300 Matter Capacity 300 Sight Range 26 Robot Scan Range 22 Terrain Scan Range 30 Terrain Scan Density 610 Armor Coverage 1200 Resistance: KI 10 Resistance: TH 10 Resistance: EX 5 Resistance: EM 90 Core Shielding 30 Melee Speed Boost 50 Evasion (%) 76 Targeting Accuracy 16 Melee Accuracy 24 Core Analysis 15 Offensive Hacking 66 Defensive Hacking 42 Item Schematics ----------------- Katana | -8/Storage | Hacked Hacking Suite | -8/Storage | Hacked Imp. Heat Sink | -8/Storage | Hacked Fission Core | -8/Storage | Hacked F-cell Engine | -7/Factory | Hacked Imp. Core Shielding | -7/Factory | Hacked Adv. Hacking Suite | -7/Factory | Downloaded Proton Cannon | -7/Factory | Hacked Imp. System Shield | -6/Factory | Hacked Adv. System Shield | -6/Factory | Hacked Combat Drone Bay | -6/Data Miner | Free Lgt. Regenerative Plating | -6/Data Miner | Free Cmb. Gravmag System | -6/Data Miner | Free Exp. Terrain Scanner | -6/Data Miner | Free Exp. ECM Suite | -6/Data Miner | Free Mni. Smartbomb Launcher | -6/Data Miner | Free Plasma Sword | -6/Data Miner | Free Imp. EM Pulse Cannon | -5/Factory | Scanalyzed Cld. VTOL Module | -5/Upper Caves | Hacked Cld. Cesium-ion Thruster | -5/Upper Caves | Hacked Assault Drone Bay | -5/Zhirov | Free Exp. Heat Sink | -5/Zhirov | Free Exp. Optical Array | -5/Zhirov | Free Imp. Arc Thrower | -5/Zhirov | Free Gui. Micro-nuke Launcher | -4/Factory | Hacked Exp. Hacking Suite | -4/Factory | Hacked Exp. System Shield | -4/Factory | Hacked Com. HERF Cannon | -4/Extension | Hacked Q-thruster | -4/Extension | Hacked Quantum Reactor | -4/Extension | Hacked Dispersion Rifle | -4/Extension | Hacked Point Singularity Launcher | -3/Testing | Hacked Nanosword | -3/Testing | Hacked Exp. Melee Analysis Suite | -3/Testing | Hacked Femtoactuators | -2/Research | Hacked Exp. Actuator Array | -2/Quarantine | Hacked Robot Schematics ------------------ S-27 Virus | -6/Data Miner | Free G-50 Soldier | -6/Data Miner | Free G-67 Veteran | -6/Data Miner | Free X-72 Disruptor | -6/Data Miner | Free H-66 Slayer | -6/Data Miner | Free P-70 Sage | -6/Data Miner | Free I-36 Angel | -6/Data Miner | Free Fabricated ------------ Fission Core | x2 | -7/Factory Adv. Hacking Suite | x1 | -6/Factory Exp. Terrain Scanner | x1 | -5/Factory Gui. Micro-nuke Launcher | x1 | -4/Factory Exp. Hacking Suite | x1 | -3/Research Exp. Hacking Suite | x1 | -3/Research Exp. System Shield | x1 | -3/Research Exp. System Shield | x1 | -3/Research Nanosword | x1 | -2/Research Nanosword | x1 | -2/Research Nanosword | x1 | -2/Research Femtoactuators | x1 | -1/Access Exp. Actuator Array | x1 | -1/Access Alien Tech Used ----------------- Integrated Dissipator Sigix Broadsword Integrity Redistributor Core Regenerator Integrated Singularity Reactor Integrated Heat Negator Core Membrane Integrated Reactor Dimensional Node Initializer LRC Boosters LRC Energy Well Transdimensional Reconstructor Subatomic Replicator Supercharged Sigix Terminator Achievements -------------- 404 Treasure Hunter Challenges ------------ None RPGLIKE | -11 -10 -10 -9 -9 -9 -8 -8 -8 -7 -7 -7 -7 -6 -6 -6 -6 -6 -5 -5 -5 -5 -5 -5 -5 -4 -4 -4 -4 -4 -4 -3 -3 -2 -2 -2 -1 -1 -1 --------- Run | Scr Mat Min Mat Min Exi Min Mat Sto Fac Low Low Zio Pro Fac Low Low Dat Pro Fac Was Fac Upp Upp Zhi Pro Fac Ext Cet Arc Hub Res Tes Res Qua Sec Acc Com Ac0 Levels Raised 36 | . 1 1 3 1 . 1 3 1 3 . . 1 1 1 . 1 . 1 2 . . . . . 1 2 1 . 1 . 1 1 1 1 . 2 3 1 XP Earned 57421 | 3000 1650 2466 4584 1325 200 500 4377 2821 3904 244 412 294 1319 2187 508 575 220 1980 2099 67 105 319 203 220 1760 1838 1870 781 289 1132 1247 699 1706 1181 1137 2764 4516 922 XP Spent 56770 | 2575 . 1550 1900 4685 1100 . 1900 3600 2000 3140 . 2950 . 2000 . 2450 . 1500 . . 1750 . 750 . . 3100 . . . 4870 1100 . 2000 2250 800 1400 4800 2600 Upgrades 107 | 7 . 2 5 26 1 . 2 3 2 12 . 2 . 1 . 2 . 1 . . 1 . 3 . . 2 . . . 10 1 . 1 1 1 1 9 11 Power Slot 2 | . . . . 1 . . . . . . . . . . . . . . . . . . . . . . . . . . . . . . 1 . . . Propulsion Slot 4 | 1 . 1 . . 1 . . 1 . . . . . . . . . . . . . . . . . . . . . . . . . . . . . . Utility Slot 10 | 1 . . . 1 . . 1 1 . . . 1 . 1 . 1 . . . . . . . . . 1 . . . 1 . . . . . . 1 . Weapon Slot 4 | 1 . . . . . . . 1 . . . . . . . . . . . . . . . . . . . . . . 1 . . . . 1 . . Core Integrity 26 | 1 . . . 3 . . . . . 2 . . . . . . . . . . . . . . . . . . . 4 . . . . . . 6 10 Heat Dissipation 7 | . . . . 1 . . . . . 4 . . . . . 1 . . . . . . . . . . . . . 1 . . . . . . . . Energy Generation 2 | 1 . . . 1 . . . . . . . . . . . . . . . . . . . . . . . . . . . . . . . . . . Energy Storage 2 | . . . . 2 . . . . . . . . . . . . . . . . . . . . . . . . . . . . . . . . . . Mass Support 3 | . . . . . . . . . . . . . . . . . . . . . . . . . . . . . . 3 . . . . . . . . Inventory Capacity 9 | 2 . 1 . . . . . . 1 . . 1 . . . . . 1 . . 1 . . . . . . . . . . . 1 1 . . . . Sight Range 2 | . . . . 1 . . . . . 1 . . . . . . . . . . . . . . . . . . . . . . . . . . . . Sensor Range 11 | . . . . 6 . . . . . 1 . . . . . . . . . . . . 3 . . . . . . . . . . . . . . 1 Terrain Scan Density 6 | . . . . 6 . . . . . . . . . . . . . . . . . . . . . . . . . . . . . . . . . . Ranged Accuracy 2 | . . . . 1 . . . . . 1 . . . . . . . . . . . . . . . . . . . . . . . . . . . . Melee Accuracy 1 | . . . . . . . . . . 1 . . . . . . . . . . . . . . . . . . . . . . . . . . . . Hack Attack % 6 | . . . 3 . . . 1 . 1 1 . . . . . . . . . . . . . . . . . . . . . . . . . . . . Hack Defense % 2 | . . . 2 . . . . . . . . . . . . . . . . . . . . . . . . . . . . . . . . . . . KI Resistance % 2 | . . . . 1 . . . . . . . . . . . . . . . . . . . . . . . . . . . . . . . . 1 . TH Resistance % 2 | . . . . 1 . . . . . . . . . . . . . . . . . . . . . . . . . . . . . . . . 1 . EX Resistance % 1 | . . . . 1 . . . . . . . . . . . . . . . . . . . . . . . . . . . . . . . . . . TH Damage % 3 | . . . . . . . . . . 1 . . . . . . . . . . . . . . . 1 . . . 1 . . . . . . . . Protomatter Created 4202 | . 176 251 170 55 . . 34 376 193 . 82 . . 187 34 116 . 46 151 290 68 75 66 . 31 165 326 127 . . 70 . 144 . 241 391 337 . Integrity Restored 11192 | . 280 562 273 396 . . 444 499 547 . 37 . . 554 98 135 . 115 291 72 195 160 71 . 68 195 2209 470 94 166 210 . 534 . 457 1052 1008 . Core 9360 | . 262 386 273 396 . . 444 341 447 . . . . 468 73 101 . 91 291 72 42 56 40 . 49 195 1767 287 71 166 210 . 534 . 446 938 914 . Parts 1832 | . 18 176 . . . . . 158 100 . 37 . . 86 25 34 . 24 . . 153 104 31 . 19 . 442 183 23 . . . . . 11 114 94 . Protomatter Decayed 6515 | . 74 68 43 . . . . 25 179 . . . . 32 . 72 . . 63 . . . 41 . . -4 164 23 51 260 . . . . 32 52 5340 . Game ------ Seed ArmorArmoredReplicator Manual? 0 Play Time 04:14:52 Cumulative 287.8 hours Start 2019.12.26 @ 15:51:09 End 2019.12.28 @ 02:00:47 Sessions 7 Manual Loads 0 Difficulty Rogue Special Mode Winter2019/RPGLIKE Game No. 312 Rogue 312 Adventurer 0 Explorer 0 Win Type - Total 26 Types 16/3/1/1/2/0/3 Lore% 91 Gallery% 86 Achievement% 76 Wizard Run 0 Options --------- ASCII 0 Keyboard 0 Movement Arrows Keybinds 0 Fullscreen 1 Font 18/SmallcapsGlow Map View 76x50 Tactical HUD 1 Map Filters NONE Filters NONE Steam 1 RUN: 7436ee77-0053-4fe5-9eb0-4cea09a93133